Workbook

Sheet Objednavka
A1: Zákazník | J1: Formulář platný od 1. 7. 2020 | L1: Zrnková | M1: - nemletá káva
A2: Fakturační adresa | G2: Návod na vyplnění formuláře zde: | L2: Velmi jemně mletá | M2: - pro džezvu
A3: Dodací adresa | G3: https://www.neprazenakava.cz/formular | L3: Jemně mletá | M3: - na českého "turka"
A4: Telefon | L4: Středně | M4: - jemně mletá - pro pákové kávovary
A5: E-mail | L5: Středně mletá | M5: - pro většinu automatických kávovarů a překapávačů nebo moka konvičku
A6: IČ / DIČ | L6: Středně | M6: - hrubě mletá - pro dripper, chemex, aeropress či vacuum pot
A7: Způsob platby | G7: Cena objednávky celkem bez DPH | I7: =I8*0.85 -> 0 | L7: Hrubě mletá | M7: - pro french press, cupping, cold brew apod.
A8: Datum objednání | G8: Cena objednávky celkem s DPH | I8: =SUM(H13:H680) -> 0 | J8: Vyplněnou objednávku nám prosím zašlete na e-mail:
A9: Poznámky | J9: objednavky@apecafe.cz
G10: Cena celkem | I10: =IF(I9="",I8,I8+I9) -> 0
G11: =IF(COUNTIF(G13:G99680,"<0")>0,"Počet kusů obsahuje záporná čísla",IF(I8<200,"Min. Hodnota VO objednávky je 200 Kč","Objednávka splňuje VO podmínky a lze ji odeslat.")) -> Min. Hodnota VO objednávky je 200 Kč | J11: Děkujeme Vám za objednávku a přejeme krásný den! :)
C13: Název zboží | D13: Cena za kus bez DPH | E13: Cena za kus s DPH | F13: Min. Počet KS | G13: Počet kusů | H13: Cena celkem s DPH
A14: NEPRAŽENÉ KÁVY
A15: Arabiky | J15: =IF(I15="","",VLOOKUP(I15,#REF!,2,0)) -> 
C16: Austrálie Skybury - 1 Kg | D16: 2153 | E16: 2475.95 | F16: 1 | G16: 0 | H16: =IF(OR(G16=0,G16=""),0,IF(G16<F16,"Prosím, vložte min. počet kusů uvedený ve vedlejším sloupečku nebo 0",E16*G16)) -> 0
C17: Bolívie - Altura EP Washed Bourbon Organic - 1 Kg | D17: 479 | E17: 550.85 | F17: 1 | G17: 0 | H17: 0 | J17: =IF(I17="","",VLOOKUP(I17,L15:M25,2,0)) -> 
C18: Bolívie - Altura EP Washed Bourbon Organic - 5 Kg | D18: 2061 | E18: 2370.15 | F18: 1 | G18: 0 | H18: 0 | J18: =IF(I18="","",VLOOKUP(I18,L15:M27,2,0)) -> 
C19: Bolívie - Altura EP Washed Bourbon Organic - 5 Kg | D19: 2061 | E19: 2370.15 | F19: 1 | G19: 0 | H19: 0 | J19: =IF(I19="","",VLOOKUP(I19,L16:M28,2,0)) -> 
C20: Bolívie - Altura EP Washed Bourbon Organic - 10 Kg | D20: 3617 | E20: 4159.55 | F20: 1 | G20: 0 | H20: 0
C21: Bolívie - Altura EP Washed Bourbon Organic - 20 Kg | D21: 6452 | E21: 7419.8 | F21: 1 | G21: 0 | H21: 0
C22: Bolívie - Altura EP Washed Bourbon Organic - 40 Kg | D22: 11617 | E22: 13359.55 | F22: 1 | G22: 0 | H22: 0
C23: Bolívie - Altura EP Washed Bourbon Organic - 60 Kg | D23: 15861 | E23: 18240.15 | F23: 1 | G23: 0 | H23: 0
C24: Bolívie - Altura EP Washed Bourbon Organic - 60 Kg - min. odběr 10 pytlů | D24: 14765 | E24: 16979.75 | F24: 10 | G24: 0 | H24: 0
C25: Brazílie - Santos NY 2/3, Scr 17/18 - 1 Kg | D25: 178 | E25: 204.7 | F25: 1 | G25: 0 | H25: =IF(OR(G25=0,G25=""),0,IF(G25<F25,"Prosím, vložte min. počet kusů uvedený ve vedlejším sloupečku nebo 0",E25*G25)) -> 0 | J25: =IF(I25="","",VLOOKUP(I25,#REF!,2,0)) -> 
C26: Brazílie - Santos NY 2/3, Scr 17/18 - 5 Kg | D26: 765 | E26: 879.75 | F26: 1 | G26: 0 | H26: =IF(OR(G26=0,G26=""),0,IF(G26<F26,"Prosím, vložte min. počet kusů uvedený ve vedlejším sloupečku nebo 0",E26*G26)) -> 0 | J26: =IF(I26="","",VLOOKUP(I26,#REF!,2,0)) -> 
C27: Brazílie - Santos NY 2/3, Scr 17/18 - 10 Kg | D27: 1348 | E27: 1550.2 | F27: 1 | G27: 0 | H27: 0 | J27: =IF(I27="","",VLOOKUP(I27,#REF!,2,0)) -> 
C28: Brazílie - Santos NY 2/3, Scr 17/18 - 20 Kg | D28: 2400 | E28: 2760 | F28: 1 | G28: 0 | H28: 0 | J28: =IF(I28="","",VLOOKUP(I28,#REF!,2,0)) -> 
C29: Brazílie - Santos NY 2/3, Scr 17/18 - 40 Kg | D29: 4313 | E29: 4959.95 | F29: 1 | G29: 0 | H29: 0 | J29: =IF(I29="","",VLOOKUP(I29,#REF!,2,0)) -> 
C30: Brazílie - Santos NY 2/3, Scr 17/18 - 59 Kg | D30: 5797 | E30: 6666.55 | F30: 1 | G30: 0 | H30: 0 | J30: =IF(I30="","",VLOOKUP(I30,#REF!,2,0)) -> 
C31: Brazílie - Santos NY 2/3, Scr 17/18 - 59 Kg - min. odběr 10 pytlů | D31: 5387 | E31: 6195.05 | F31: 10 | G31: 0 | H31: 0 | J31: =IF(I31="","",VLOOKUP(I31,L15:M15,2,0)) -> 
C32: Burundi - 1 Kg | D32: 410 | E32: 471.5 | F32: 1 | G32: 0 | H32: =IF(OR(G32=0,G32=""),0,IF(G32<F32,"Prosím, vložte min. počet kusů uvedený ve vedlejším sloupečku nebo 0",E32*G32)) -> 0
C33: Burundi - 5 Kg | D33: 1760 | E33: 2024 | F33: 1 | G33: 0 | H33: 0
C34: Burundi - 10 Kg | D34: 3087 | E34: 3550.05 | F34: 1 | G34: 0 | H34: 0
C35: Burundi - 20 Kg | D35: 5513 | E35: 6339.95 | F35: 1 | G35: 0 | H35: 0
C36: Burundi - 40 Kg | D36: 9948 | E36: 11440.2 | F36: 1 | G36: 0 | H36: 0
C37: Burundi - 60 Kg | D37: 13565 | E37: 15599.75 | F37: 1 | G37: 0 | H37: 0
C38: Burundi - 60 Kg - min. odběr 10 pytlů | D38: 12626 | E38: 14519.9 | F38: 10 | G38: 0 | H38: 0
C39: Dominikánská republika - Cerro Prieto Estate Washed, Miguel Tejada - 1 Kg | D39: 433 | E39: 497.95 | F39: 1 | G39: 0 | H39: =IF(OR(G39=0,G39=""),0,IF(G39<F39,"Prosím, vložte min. počet kusů uvedený ve vedlejším sloupečku nebo 0",E39*G39)) -> 0
C40: Dominikánská republika - Cerro Prieto Estate Washed, Miguel Tejada - 5 Kg | D40: 1861 | E40: 2140.15 | F40: 1 | G40: 0 | H40: 0
C41: Dominikánská republika - Cerro Prieto Estate Washed, Miguel Tejada - 10 Kg | D41: 3270 | E41: 3760.5 | F41: 1 | G41: 0 | H41: 0
C42: Dominikánská republika - Cerro Prieto Estate Washed, Miguel Tejada - 20 Kg | D42: 5826 | E42: 6699.9 | F42: 1 | G42: 0 | H42: 0
C43: Dominikánská republika - Cerro Prieto Estate Washed, Miguel Tejada - 40 Kg | D43: 10504 | E43: 12079.6 | F43: 1 | G43: 0 | H43: 0
C44: Dominikánská republika - Cerro Prieto Estate Washed, Miguel Tejada - 75 Kg | D44: 17935 | E44: 20625.25 | F44: 1 | G44: 0 | H44: 0
C45: Dominikánská republika - Cerro Prieto Estate Washed, Miguel Tejada - 75 Kg - min. odběr 10 pytlů | D45: 16696 | E45: 19200.4 | F45: 10 | G45: 0 | H45: 0
C46: Etiopie Sidamo Mamo Kacha - Washed Gr. 2 - 1 Kg | D46: 365 | E46: 419.75 | F46: 1 | G46: 0 | H46: 0
C47: Etiopie Sidamo Mamo Kacha - Washed Gr. 2 - 5 Kg | D47: 1570 | E47: 1805.5 | F47: 1 | G47: 0 | H47: 0
C48: Etiopie Sidamo Mamo Kacha - Washed Gr. 2 - 10 Kg | D48: 2757 | E48: 3170.55 | F48: 1 | G48: 0 | H48: 0
C49: Etiopie Sidamo Mamo Kacha - Washed Gr. 2 - 20 Kg | D49: 4922 | E49: 5660.3 | F49: 1 | G49: 0 | H49: 0
C50: Etiopie Sidamo Mamo Kacha - Washed Gr. 2 - 40 Kg | D50: 8870 | E50: 10200.5 | F50: 1 | G50: 0 | H50: 0
C51: Etiopie Sidamo Mamo Kacha - Washed Gr. 2 - 60 Kg | D51: 12104 | E51: 13919.6 | F51: 1 | G51: 0 | H51: 0
C52: Etiopie Sidamo Mamo Kacha - Washed Gr. 2 - 60 Kg - min. odběr 10 pytlů | D52: 11270 | E52: 12960.5 | F52: 10 | G52: 0 | H52: 0
C53: Etiopie Yirgacheffe - 1 Kg | D53: 435 | E53: 500.25 | F53: 1 | G53: 0 | H53: 0
C54: Etiopie Yirgacheffe - 5 Kg | D54: 1870 | E54: 2150.5 | F54: 1 | G54: 0 | H54: 0
C55: Etiopie Yirgacheffe - 10 Kg | D55: 3287 | E55: 3780.05 | F55: 1 | G55: 0 | H55: 0
C56: Etiopie Yirgacheffe - 20 Kg | D56: 5843 | E56: 6719.45 | F56: 1 | G56: 0 | H56: 0 | J56: =IF(I56="","",VLOOKUP(I56,#REF!,2,0)) -> 
C57: Etiopie Yirgacheffe - 40 Kg | D57: 10539 | E57: 12119.85 | F57: 1 | G57: 0 | H57: 0 | J57: =IF(I57="","",VLOOKUP(I57,#REF!,2,0)) -> 
C58: Etiopie Yirgacheffe - 60 Kg | D58: 14400 | E58: 16560 | F58: 1 | G58: 0 | H58: 0 | J58: =IF(I58="","",VLOOKUP(I58,#REF!,2,0)) -> 
C59: Etiopie Yirgacheffe - 60 Kg - min. odběr 10 pytlů | D59: 13409 | E59: 15420.35 | F59: 10 | G59: 0 | H59: 0 | J59: =IF(I59="","",VLOOKUP(I59,#REF!,2,0)) -> 
C60: Guatemala SHB EP Santa Rosa - 1 Kg | D60: 274 | E60: 315.1 | F60: 1 | G60: 0 | H60: 0 | J60: =IF(I60="","",VLOOKUP(I60,#REF!,2,0)) -> 
C61: Guatemala SHB EP Santa Rosa - 5 Kg | D61: 1178 | E61: 1354.7 | F61: 1 | G61: 0 | H61: 0 | J61: =IF(I61="","",VLOOKUP(I61,L54:M54,2,0)) -> 
C62: Guatemala SHB EP Santa Rosa - 10 Kg | D62: 2070 | E62: 2380.5 | F62: 1 | G62: 0 | H62: 0 | J62: =IF(I62="","",VLOOKUP(I62,L54:M55,2,0)) -> 
C63: Guatemala SHB EP Santa Rosa - 20 Kg | D63: 3687 | E63: 4240.05 | F63: 1 | G63: 0 | H63: 0 | J63: =IF(I63="","",VLOOKUP(I63,L54:M56,2,0)) -> 
C64: Guatemala SHB EP Santa Rosa - 40 Kg | D64: 6643 | E64: 7639.45 | F64: 1 | G64: 0 | H64: 0 | J64: =IF(I64="","",VLOOKUP(I64,L54:M58,2,0)) -> 
C65: Guatemala SHB EP Santa Rosa - 69 Kg | D65: 10440 | E65: 12006 | F65: 1 | G65: 0 | H65: 0
C66: Guatemala SHB EP Santa Rosa - 69 Kg - min. odběr 10 pytlů | D66: 9720 | E66: 11178 | F66: 10 | G66: 0 | H66: 0
C67: Hawaii Kona - 1 Kg | D67: 2184 | E67: 2511.6 | F67: 1 | G67: 0 | H67: 0
C68: Hawaii Kona - 5 Kg | D68: 9396 | E68: 10805.4 | F68: 1 | G68: 0 | H68: 0
C69: Hawaii Kona - 10 Kg | D69: 16487 | E69: 18960.05 | F69: 1 | G69: 0 | H69: 0
C70: Hawaii Kona - 20 Kg | D70: 29374 | E70: 33780.1 | F70: 1 | G70: 0 | H70: 0
C71: Hawaii Kona - 40 Kg | D71: 52974 | E71: 60920.1 | F71: 1 | G71: 0 | H71: =IF(OR(G71=0,G71=""),0,IF(G71<F71,"Prosím, vložte min. počet kusů uvedený ve vedlejším sloupečku nebo 0",E71*G71)) -> 0
C72: Hawaii Kona - 60 Kg | D72: 72313 | E72: 83159.95 | F72: 1 | G72: 0 | H72: 0
C73: Hawaii Kona - 60 Kg - min. odběr 10 pytlů | D73: 67304 | E73: 77399.6 | F73: 10 | G73: 0 | H73: 0
C74: Honduras SHG EP - 1 Kg | D74: 224 | E74: 257.6 | F74: 1 | G74: 0 | H74: 0
C75: Honduras SHG EP - 5 Kg | D75: 965 | E75: 1109.75 | F75: 1 | G75: 0 | H75: 0
C76: Honduras SHG EP - 10 Kg | D76: 1696 | E76: 1950.4 | F76: 1 | G76: 0 | H76: 0
C77: Honduras SHG EP - 20 Kg | D77: 3026 | E77: 3479.9 | F77: 1 | G77: 0 | H77: 0
C78: Honduras SHG EP - 40 Kg | D78: 5461 | E78: 6280.15 | F78: 1 | G78: 0 | H78: 0
C79: Honduras SHG EP - 69 Kg | D79: 8580 | E79: 9867 | F79: 1 | G79: 0 | H79: 0
C80: Honduras SHG EP - 69 Kg - min. odběr 10 pytlů | D80: 7980 | E80: 9177 | F80: 10 | G80: 0 | H80: 0
C81: Indie Plantation A - 1 Kg | D81: 271 | E81: 311.65 | F81: 1 | G81: 0 | H81: 0
C82: Indie Plantation A - 5 Kg | D82: 1170 | E82: 1345.5 | F82: 1 | G82: 0 | H82: 0
C83: Indie Plantation A - 10 Kg | D83: 2052 | E83: 2359.8 | F83: 1 | G83: 0 | H83: 0
C84: Indie Plantation A - 20 Kg | D84: 3652 | E84: 4199.8 | F84: 1 | G84: 0 | H84: 0
C85: Indie Plantation A - 40 Kg | D85: 6609 | E85: 7600.35 | F85: 1 | G85: 0 | H85: 0
C86: Indie Plantation A - 60 Kg | D86: 9026 | E86: 10379.9 | F86: 1 | G86: 0 | H86: 0
C87: Indie Plantation A - 60 Kg - min. odběr 10 pytlů | D87: 8400 | E87: 9660 | F87: 10 | G87: 0 | H87: 0
C88: Indie Monsooned Malabar - 1 Kg | D88: 288 | E88: 331.2 | F88: 1 | G88: 0 | H88: 0
C89: Indie Monsooned Malabar - 5 Kg | D89: 1235 | E89: 1420.25 | F89: 1 | G89: 0 | H89: 0
C90: Indie Monsooned Malabar - 10 Kg | D90: 2174 | E90: 2500.1 | F90: 1 | G90: 0 | H90: 0
C91: Indie Monsooned Malabar - 20 Kg | D91: 3861 | E91: 4440.15 | F91: 1 | G91: 0 | H91: 0
C92: Indie Monsooned Malabar - 40 Kg | D92: 6991 | E92: 8039.65 | F92: 1 | G92: 0 | H92: 0
C93: Indie Monsooned Malabar - 50 Kg | D93: 7957 | E93: 9150.55 | F93: 1 | G93: 0 | H93: 0
C94: Indie Monsooned Malabar - 50 Kg - min. odběr 10 pytlů | D94: 7392 | E94: 8500.8 | F94: 10 | G94: 0 | H94: 0
C95: Indonésie Sulawesi Kalossi - Benteng Alla Grade 1 - 1 Kg | D95: 380 | E95: 437 | F95: 1 | G95: 0 | H95: =IF(OR(G95=0,G95=""),0,IF(G95<F95,"Prosím, vložte min. počet kusů uvedený ve vedlejším sloupečku nebo 0",E95*G95)) -> 0
C96: Indonésie Sulawesi Kalossi - Benteng Alla Grade 1 - 5 Kg | D96: 1635 | E96: 1880.25 | F96: 1 | G96: 0 | H96: 0
C97: Indonésie Sulawesi Kalossi - Benteng Alla Grade 1 - 10 Kg | D97: 2870 | E97: 3300.5 | F97: 1 | G97: 0 | H97: 0
C98: Indonésie Sulawesi Kalossi - Benteng Alla Grade 1 - 20 Kg | D98: 5113 | E98: 5879.95 | F98: 1 | G98: 0 | H98: 0
C99: Indonésie Sulawesi Kalossi - Benteng Alla Grade 1 - 40 Kg | D99: 9217 | E99: 10599.55 | F99: 1 | G99: 0 | H99: 0
C100: Indonésie Sulawesi Kalossi - Benteng Alla Grade 1 - 60 Kg | D100: 12574 | E100: 14460.1 | F100: 1 | G100: 0 | H100: 0
C101: Indonésie Sulawesi Kalossi - Benteng Alla Grade 1 - 60 Kg - min. odběr 10 pytlů | D101: 11739 | E101: 13499.85 | F101: 10 | G101: 0 | H101: 0
C102: Keňa AA Plus - 1 Kg | D102: 416 | E102: 478.4 | F102: 1 | G102: 0 | H102: 0
C103: Keňa AA Plus - 5 Kg | D103: 1787 | E103: 2055.05 | F103: 1 | G103: 0 | H103: =IF(OR(G103=0,G103=""),0,IF(G103<F103,"Prosím, vložte min. počet kusů uvedený ve vedlejším sloupečku nebo 0",E103*G103)) -> 0
C104: Keňa AA Plus - 10 Kg | D104: 3139 | E104: 3609.85 | F104: 1 | G104: 0 | H104: 0
C105: Keňa AA Plus - 20 Kg | D105: 5600 | E105: 6440 | F105: 1 | G105: 0 | H105: 0
C106: Keňa AA Plus - 40 Kg | D106: 10087 | E106: 11600.05 | F106: 1 | G106: 0 | H106: 0
C107: Keňa AA Plus - 60 Kg | D107: 13774 | E107: 15840.1 | F107: 1 | G107: 0 | H107: 0
C108: Keňa AA Plus - 60 Kg - min. odběr 10 pytlů | D108: 12834 | E108: 14759.1 | F108: 10 | G108: 0 | H108: 0
C109: Kolumbie Excelso Maragogype – Finca el Boton - 1 Kg | D109: 730 | E109: 839.5 | F109: 1 | G109: 0 | H109: 0
C110: Kolumbie Excelso Maragogype – Finca el Boton - 5 Kg | D110: 3140 | E110: 3611 | F110: 1 | G110: 0 | H110: 0
C111: Kolumbie Excelso Maragogype – Finca el Boton - 10 Kg | D111: 5510 | E111: 6336.5 | F111: 1 | G111: 0 | H111: 0
C112: Kolumbie Excelso Maragogype – Finca el Boton - 20 Kg | D112: 9820 | E112: 11293 | F112: 1 | G112: 0 | H112: 0
C113: Kolumbie Excelso Maragogype – Finca el Boton - 40 Kg | D113: 17720 | E113: 20378 | F113: 1 | G113: 0 | H113: 0
C114: Kolumbie Excelso Maragogype – Finca el Boton - 60 Kg | D114: 24180 | E114: 27807 | F114: 1 | G114: 0 | H114: 0
C115: Kolumbie Excelso Maragogype – Finca el Boton - 60 Kg - min. odběr 10 pytlů | D115: 22500 | E115: 25875 | F115: 1 | G115: 0 | H115: 0
C116: Kolumbie Supremo - Medellin 17/18 - 1 Kg | D116: 250 | E116: 287.5 | F116: 1 | G116: 0 | H116: 0
C117: Kolumbie Supremo - Medellin 17/18 - 5 Kg | D117: 1074 | E117: 1235.1 | F117: 1 | G117: 0 | H117: 0
C118: Kolumbie Supremo - Medellin 17/18 - 10 Kg | D118: 1887 | E118: 2170.05 | F118: 1 | G118: 0 | H118: 0
C119: Kolumbie Supremo - Medellin 17/18 - 20 Kg | D119: 3357 | E119: 3860.55 | F119: 1 | G119: 0 | H119: 0
C120: Kolumbie Supremo - Medellin 17/18 - 40 Kg | D120: 6052 | E120: 6959.8 | F120: 1 | G120: 0 | H120: 0
C121: Kolumbie Supremo - Medellin 17/18 - 70 Kg | D121: 9678 | E121: 11129.7 | F121: 1 | G121: 0 | H121: 0
C122: Kolumbie Supremo - Medellin 17/18 - 70 Kg - min. odběr 10 pytlů | D122: 9009 | E122: 10360.35 | F122: 10 | G122: 0 | H122: 0
C123: Kostarika - Tarrazu SHB EP Tucan - 1 Kg | D123: 344 | E123: 395.6 | F123: 1 | G123: 0 | H123: 0
C124: Kostarika - Tarrazu SHB EP Tucan - 5 Kg | D124: 1483 | E124: 1705.45 | F124: 1 | G124: 0 | H124: 0
C125: Kostarika - Tarrazu SHB EP Tucan - 10 Kg | D125: 2600 | E125: 2990 | F125: 1 | G125: 0 | H125: 0
C126: Kostarika - Tarrazu SHB EP Tucan - 20 Kg | D126: 4643 | E126: 5339.45 | F126: 1 | G126: 0 | H126: 0
C127: Kostarika - Tarrazu SHB EP Tucan - 40 Kg | D127: 8348 | E127: 9600.2 | F127: 1 | G127: 0 | H127: 0
C128: Kostarika - Tarrazu SHB EP Tucan - 69 Kg | D128: 14400 | E128: 16560 | F128: 1 | G128: 0 | H128: 0
C129: Kostarika - Tarrazu SHB EP Tucan - 69 Kg - min. odběr 10 pytlů | D129: 12240 | E129: 14076 | F129: 10 | G129: 0 | H129: 0
C130: Kostarika - Palmichal El Cedral Black Honey - 1 Kg | D130: 555 | E130: 638.25 | F130: 1 | G130: 0 | H130: 0
C131: Kostarika - Palmichal El Cedral Black Honey - 5 Kg | D131: 2390 | E131: 2748.5 | F131: 1 | G131: 0 | H131: 0
C132: Kostarika - Palmichal El Cedral Black Honey - 10 Kg | D132: 4190 | E132: 4818.5 | F132: 1 | G132: 0 | H132: 0
C133: Kostarika - Palmichal El Cedral Black Honey - 20 Kg | D133: 7460 | E133: 8579 | F133: 1 | G133: 0 | H133: 0
C134: Kostarika - Palmichal El Cedral Black Honey - 40 Kg | D134: 13480 | E134: 15502 | F134: 1 | G134: 0 | H134: 0
C135: Kostarika - Palmichal El Cedral Black Honey - 60 Kg | D135: 18420 | E135: 21183 | F135: 1 | G135: 0 | H135: =IF(OR(G135=0,G135=""),0,IF(G135<F135,"Prosím, vložte min. počet kusů uvedený ve vedlejším sloupečku nebo 0",E135*G135)) -> 0
C136: Kostarika - Palmichal El Cedral Black Honey - 60 Kg - min. odběr 10 pytlů | D136: 17100 | E136: 19665 | F136: 1 | G136: 0 | H136: 0
C137: Kuba - Serrano Lavado - 1 Kg | D137: 369 | E137: 424.35 | F137: 1 | G137: 0 | H137: 0
C138: Kuba - Serrano Lavado - 5 Kg | D138: 1587 | E138: 1825.05 | F138: 1 | G138: 0 | H138: 0
C139: Kuba - Serrano Lavado - 10 Kg | D139: 2783 | E139: 3200.45 | F139: 1 | G139: 0 | H139: 0
C140: Kuba - Serrano Lavado - 20 Kg | D140: 4957 | E140: 5700.55 | F140: 1 | G140: 0 | H140: 0
C141: Kuba - Serrano Lavado - 40 Kg | D141: 8939 | E141: 10279.85 | F141: 1 | G141: 0 | H141: 0
C142: Kuba - Serrano Lavado - 60 Kg | D142: 12209 | E142: 14040.35 | F142: 1 | G142: 0 | H142: 0
C143: Kuba - Serrano Lavado - 60 Kg - min. odběr 10 pytlů | D143: 11374 | E143: 13080.1 | F143: 10 | G143: 0 | H143: 0
C144: Malawi - Rain Forest Alliance - 1 Kg | D144: 328 | E144: 377.2 | F144: 1 | G144: 0 | H144: 0
C145: Malawi - Rain Forest Alliance - 5 Kg | D145: 1413 | E145: 1624.95 | F145: 1 | G145: 0 | H145: 0
C146: Malawi - Rain Forest Alliance - 10 Kg | D146: 2478 | E146: 2849.7 | F146: 1 | G146: 0 | H146: 0
C147: Malawi - Rain Forest Alliance - 20 Kg | D147: 4416 | E147: 5078.4 | F147: 1 | G147: 0 | H147: 0
C148: Malawi - Rain Forest Alliance - 40 Kg | D148: 7965 | E148: 9159.75 | F148: 1 | G148: 0 | H148: 0
C149: Malawi - Rain Forest Alliance - 60 Kg | D149: 10852 | E149: 12479.8 | F149: 1 | G149: 0 | H149: 0
C150: Malawi - Rain Forest Alliance - 60 Kg - min. odběr 10 pytlů | D150: 10122 | E150: 11640.3 | F150: 10 | G150: 0 | H150: 0
C151: Mexico - SHG EP El Conejo - 1 Kg | D151: 322 | E151: 370.3 | F151: 1 | G151: 0 | H151: 0
C152: Mexico - SHG EP El Conejo - 5 Kg | D152: 1383 | E152: 1590.45 | F152: 1 | G152: 0 | H152: 0
C153: Mexico - SHG EP El Conejo - 10 Kg | D153: 2426 | E153: 2789.9 | F153: 1 | G153: 0 | H153: 0
C154: Mexico - SHG EP El Conejo - 20 Kg | D154: 4330 | E154: 4979.5 | F154: 1 | G154: 0 | H154: 0
C155: Mexico - SHG EP El Conejo - 40 Kg | D155: 7791 | E155: 8959.65 | F155: 1 | G155: 0 | H155: 0
C156: Mexico - SHG EP El Conejo - 69 Kg | D156: 12240 | E156: 14076 | F156: 1 | G156: 0 | H156: 0
C157: Mexico - SHG EP El Conejo - 69 Kg - min. odběr 10 pytlů | D157: 11400 | E157: 13110 | F157: 10 | G157: 0 | H157: 0
C158: Mexico bez kofeinu - El Tucan Mountain Water Process - 1 Kg | D158: 353 | E158: 405.95 | F158: 1 | G158: 0 | H158: 0
C159: Mexico bez kofeinu - El Tucan Mountain Water Process - 5 Kg | D159: 1522 | E159: 1750.3 | F159: 1 | G159: 0 | H159: 0
C160: Mexico bez kofeinu - El Tucan Mountain Water Process - 10 Kg | D160: 2670 | E160: 3070.5 | F160: 1 | G160: 0 | H160: 0
C161: Mexico bez kofeinu - El Tucan Mountain Water Process - 20 Kg | D161: 4748 | E161: 5460.2 | F161: 1 | G161: 0 | H161: 0
C162: Mexico bez kofeinu - El Tucan Mountain Water Process - 40 Kg | D162: 8591 | E162: 9879.65 | F162: 1 | G162: 0 | H162: 0
C163: Mexico bez kofeinu - El Tucan Mountain Water Process - 69 Kg | D163: 13500 | E163: 15525 | F163: 1 | G163: 0 | H163: 0
C164: Mexico bez kofeinu - El Tucan Mountain Water Process - 69 Kg - min. odběr 10 pytlů | D164: 12540 | E164: 14421 | F164: 10 | G164: 0 | H164: 0
C165: Panama Boquete SHP EP San Sebastian Estate - 1 Kg | D165: 448 | E165: 515.2 | F165: 1 | G165: 0 | H165: 0
C166: Panama Boquete SHP EP San Sebastian Estate - 5 Kg | D166: 1926 | E166: 2214.9 | F166: 1 | G166: 0 | H166: 0
C167: Panama Boquete SHP EP San Sebastian Estate - 10 Kg | D167: 3383 | E167: 3890.45 | F167: 1 | G167: 0 | H167: =IF(OR(G167=0,G167=""),0,IF(G167<F167,"Prosím, vložte min. počet kusů uvedený ve vedlejším sloupečku nebo 0",E167*G167)) -> 0
C168: Panama Boquete SHP EP San Sebastian Estate - 20 Kg | D168: 6017 | E168: 6919.55 | F168: 1 | G168: 0 | H168: 0
C169: Panama Boquete SHP EP San Sebastian Estate - 40 Kg | D169: 10852 | E169: 12479.8 | F169: 1 | G169: 0 | H169: 0
C170: Panama Boquete SHP EP San Sebastian Estate - 60 Kg | D170: 14818 | E170: 17040.7 | F170: 1 | G170: 0 | H170: 0
C171: Panama Boquete SHP EP San Sebastian Estate - 60 Kg - min. odběr 10 pytlů | D171: 13826 | E171: 15899.9 | F171: 10 | G171: 0 | H171: 0 | J171: =IF(I171="","",VLOOKUP(I171,#REF!,2,0)) -> 
C172: Papua - Nová Guinea - Goroka Plantation A/X - 1 Kg | D172: 314 | E172: 361.1 | F172: 1 | G172: 0 | H172: 0
C173: Papua - Nová Guinea - Goroka Plantation A/X - 5 Kg | D173: 1352 | E173: 1554.8 | F173: 1 | G173: 0 | H173: 0
C174: Papua - Nová Guinea - Goroka Plantation A/X - 10 Kg | D174: 2374 | E174: 2730.1 | F174: 1 | G174: 0 | H174: 0
C175: Papua - Nová Guinea - Goroka Plantation A/X - 20 Kg | D175: 4226 | E175: 4859.9 | F175: 1 | G175: 0 | H175: 0
C176: Papua - Nová Guinea - Goroka Plantation A/X - 40 Kg | D176: 7617 | E176: 8759.55 | F176: 1 | G176: 0 | H176: 0
C177: Papua - Nová Guinea - Goroka Plantation A/X - 60 Kg | D177: 10435 | E177: 12000.25 | F177: 1 | G177: 0 | H177: 0
C178: Papua - Nová Guinea - Goroka Plantation A/X - 60 Kg - min. odběr 10 pytlů | D178: 9704 | E178: 11159.6 | F178: 10 | G178: 0 | H178: 0
C179: Peru - Grade 1 - 1 Kg | D179: 226 | E179: 259.9 | F179: 1 | G179: 0 | H179: 0 | J179: =IF(I179="","",VLOOKUP(I179,#REF!,2,0)) -> 
C180: Peru - Grade 1 - 5 Kg | D180: 974 | E180: 1120.1 | F180: 1 | G180: 0 | H180: 0 | J180: =IF(I180="","",VLOOKUP(I180,#REF!,2,0)) -> 
C181: Peru - Grade 1 - 10 Kg | D181: 1713 | E181: 1969.95 | F181: 1 | G181: 0 | H181: 0 | J181: =IF(I181="","",VLOOKUP(I181,#REF!,2,0)) -> 
C182: Peru - Grade 1 - 20 Kg | D182: 3043 | E182: 3499.45 | F182: 1 | G182: 0 | H182: 0 | J182: =IF(I182="","",VLOOKUP(I182,#REF!,2,0)) -> 
C183: Peru - Grade 1 - 40 Kg | D183: 5496 | E183: 6320.4 | F183: 1 | G183: 0 | H183: 0 | J183: =IF(I183="","",VLOOKUP(I183,L169:M169,2,0)) -> 
C184: Peru - Grade 1 - 69 Kg | D184: 8640 | E184: 9936 | F184: 1 | G184: 0 | H184: 0 | J184: =IF(I184="","",VLOOKUP(I184,L169:M170,2,0)) -> 
C185: Peru - Grade 1 - 69 Kg - min. odběr 10 pytlů | D185: 8040 | E185: 9246 | F185: 10 | G185: 0 | H185: 0 | J185: =IF(I185="","",VLOOKUP(I185,L169:M171,2,0)) -> 
C186: Rwanda AA - 1 Kg | D186: 285 | E186: 327.75 | F186: 1 | G186: 0 | H186: 0 | J186: =IF(I186="","",VLOOKUP(I186,L169:M180,2,0)) -> 
C187: Rwanda AA - 5 Kg | D187: 1226 | E187: 1409.9 | F187: 1 | G187: 0 | H187: 0
C188: Rwanda AA - 10 Kg | D188: 2157 | E188: 2480.55 | F188: 1 | G188: 0 | H188: 0
C189: Rwanda AA - 20 Kg | D189: 3843 | E189: 4419.45 | F189: 1 | G189: 0 | H189: 0
C190: Rwanda AA - 40 Kg | D190: 6922 | E190: 7960.3 | F190: 1 | G190: 0 | H190: 0
C191: Rwanda AA - 60 Kg | D191: 9443 | E191: 10859.45 | F191: 1 | G191: 0 | H191: 0
C192: Rwanda AA - 60 Kg - min. odběr 10 pytlů | D192: 8818 | E192: 10140.7 | F192: 10 | G192: 0 | H192: 0
C193: Salvador SHG EP Organic - 1 Kg | D193: 337 | E193: 387.55 | F193: 1 | G193: 0 | H193: =IF(OR(G193=0,G193=""),0,IF(G193<F193,"Prosím, vložte min. počet kusů uvedený ve vedlejším sloupečku nebo 0",E193*G193)) -> 0
C194: Salvador SHG EP Organic - 5 Kg | D194: 1448 | E194: 1665.2 | F194: 1 | G194: 0 | H194: 0
C195: Salvador SHG EP Organic - 10 Kg | D195: 2539 | E195: 2919.85 | F195: 1 | G195: 0 | H195: 0
C196: Salvador SHG EP Organic - 20 Kg | D196: 4522 | E196: 5200.3 | F196: 1 | G196: 0 | H196: 0
C197: Salvador SHG EP Organic - 40 Kg | D197: 8174 | E197: 9400.1 | F197: 1 | G197: 0 | H197: 0
C198: Salvador SHG EP Organic - 69 Kg | D198: 12840 | E198: 14766 | F198: 1 | G198: 0 | H198: 0
C199: Salvador SHG EP Organic - 69 Kg - min. odběr 10 pytlů | D199: 11940 | E199: 13731 | F199: 10 | G199: 0 | H199: 0
C200: Tanzánie - 1 Kg | D200: 376 | E200: 432.4 | F200: 1 | G200: 0 | H200: =IF(OR(G200=0,G200=""),0,IF(G200<F200,"Prosím, vložte min. počet kusů uvedený ve vedlejším sloupečku nebo 0",E200*G200)) -> 0
C201: Tanzánie - 5 Kg | D201: 1617 | E201: 1859.55 | F201: 1 | G201: 0 | H201: 0
... 42 more rows

Sheet Sheet1 (hidden)

Sheet Faktura
B1: APe Pražírna a balírna s.r.o. | N1: VYPLNÍ ZAMĚSTNANEC
F2: IČ: | G2: 6649874 | I2: tel./fax: | J2: 485178008 | N2: Číslo faktury:
B3: Horská 564/7 | F3: DIČ: | G3: CZ06649874 | N3: Číslo objednávky:
B4: 460 14 Liberec XIV - Ruprechtice | F4: fax: | J4: 485178008 | N4: Datum vystavení:
B5: Česká republika | F5: www.apecafe.cz | I5: email: | J5: info@apecafe.cz | N5: Datum Splatnosti:
B6: Faktura - daňový doklad | K6: =IF(O2="","Nevyplněno APE",O2) -> Nevyplněno APE | N6: Datum DUZP:
B8: Odběratel: | I8: =IF(Objednavka!C1="","Nevyplňeno zákazníkem",Objednavka!C1) -> Nevyplňeno zákazníkem
B9: Fakturační adresa: | I9: =IF(Objednavka!C2="","Nevyplňeno zákazníkem",Objednavka!C2) -> Nevyplňeno zákazníkem
B10: Dodací adresa: | I10: =IF(Objednavka!C3="","Nevyplňeno zákazníkem",Objednavka!C3) -> Nevyplňeno zákazníkem
B11: Telefon: | I11: =IF(Objednavka!C4="","Nevyplňeno zákazníkem",Objednavka!C4) -> Nevyplňeno zákazníkem
B12: E-mail: | I12: =IF(Objednavka!C5="","Nevyplňeno zákazníkem",Objednavka!C5) -> Nevyplňeno zákazníkem
B13: IČ / DIČ: | I13: =IF(Objednavka!C6="","Nevyplňeno zákazníkem",Objednavka!C6) -> Nevyplňeno zákazníkem
B14: Datum objednání: | I14: =IF(Objednavka!C8="","Nevyplňeno zákazníkem",Objednavka!C8) -> Nevyplňeno zákazníkem
B16: Datum | E16: symbol | H16: Způsob úhrady: | J16: =IF(Objednavka!C7="","Nevyplňeno zákazníkem",Objednavka!C7) -> Nevyplňeno zákazníkem
B17: Vystavení: | C17: =IF(O4="","Nevyplněno APE",O4) -> Nevyplněno APE | E17: konstantni: | F17: 0008 | H17: Číslo objednávky: | J17: =IF(O3="","Nevyplněno APE",O3) -> Nevyplněno APE
B18: Splatnosti: | C18: =IF(O5="","Nevyplněno APE",O5) -> Nevyplněno APE | E18: variabilni: | F18: =IF(J17="VYPLNIT","Nevyplňeno",J17) -> Nevyplněno APE
B19: DUZP: | C19: =IF(O6="","Nevyplněno APE",O6) -> Nevyplněno APE | H19: Poznámky:
H20: =IF(Objednavka!C9="","Nevyplňeno zákazníkem",Objednavka!C9) -> Nevyplňeno zákazníkem
B21: Bankovní účet | E21: Kód banky
B22: 101426318 | E22: 0300
B23: IBAN: CZ58 0300 0000 0001 0142 6318 | E23: SWIFT: CEKOCZPP
B24: Fakturujeme vám za dodané zboží:
B28: Název zboží | H28: Cena za kus bez DPH | J28: Cena za kus s DPH | K28: Počet kusů | L28: Cena celkem s DPH
B29: =IF(INDEX(Objednavka!A:I,14,3)="",INDEX(Objednavka!A:I,14,1),INDEX(Objednavka!A:I,14,3)) -> NEPRAŽENÉ KÁVY | H29: =INDEX(Objednavka!A:I,14,4) -> 0 | J29: =INDEX(Objednavka!A:I,14,5) -> 0 | K29: =INDEX(Objednavka!A:I,14,7) -> 0 | L29: =INDEX(Objednavka!A:I,14,8) -> 0 | N29: =IF(INDEX(Objednavka!A:J,14,10)="","",INDEX(Objednavka!A:J,14,10)) -> 
B30: =IF(INDEX(Objednavka!A:I,15,3)="",INDEX(Objednavka!A:I,15,1),INDEX(Objednavka!A:I,15,3)) -> Arabiky | H30: =INDEX(Objednavka!A:I,15,4) -> 0 | J30: =INDEX(Objednavka!A:I,15,5) -> 0 | K30: =INDEX(Objednavka!A:I,15,7) -> 0 | L30: =INDEX(Objednavka!A:I,15,8) -> 0 | N30: =IF(INDEX(Objednavka!A:J,15,10)="","",INDEX(Objednavka!A:J,15,10)) -> 
B31: =IF(INDEX(Objednavka!A:I,16,3)="",INDEX(Objednavka!A:I,16,1),INDEX(Objednavka!A:I,16,3)) -> Austrálie Skybury - 1 Kg | H31: =INDEX(Objednavka!A:I,16,4) -> 2153 | J31: =INDEX(Objednavka!A:I,16,5) -> 2475.95 | K31: =INDEX(Objednavka!A:I,16,7) -> 0 | L31: =INDEX(Objednavka!A:I,16,8) -> 0 | N31: =IF(INDEX(Objednavka!A:J,16,10)="","",INDEX(Objednavka!A:J,16,10)) -> 
B32: =IF(INDEX(Objednavka!A:I,17,3)="",INDEX(Objednavka!A:I,17,1),INDEX(Objednavka!A:I,17,3)) -> Bolívie - Altura EP Washed Bourbon Organic - 1 Kg | H32: =INDEX(Objednavka!A:I,17,4) -> 479 | J32: =INDEX(Objednavka!A:I,17,5) -> 550.85 | K32: =INDEX(Objednavka!A:I,17,7) -> 0 | L32: =INDEX(Objednavka!A:I,17,8) -> 0 | N32: =IF(INDEX(Objednavka!A:J,17,10)="","",INDEX(Objednavka!A:J,17,10)) -> 
B33: =IF(INDEX(Objednavka!A:I,18,3)="",INDEX(Objednavka!A:I,18,1),INDEX(Objednavka!A:I,18,3)) -> Bolívie - Altura EP Washed Bourbon Organic - 5 Kg | H33: =INDEX(Objednavka!A:I,18,4) -> 2061 | J33: =INDEX(Objednavka!A:I,18,5) -> 2370.15 | K33: =INDEX(Objednavka!A:I,18,7) -> 0 | L33: =INDEX(Objednavka!A:I,18,8) -> 0 | N33: =IF(INDEX(Objednavka!A:J,18,10)="","",INDEX(Objednavka!A:J,18,10)) -> 
B34: =IF(INDEX(Objednavka!A:I,19,3)="",INDEX(Objednavka!A:I,19,1),INDEX(Objednavka!A:I,19,3)) -> Bolívie - Altura EP Washed Bourbon Organic - 5 Kg | H34: =INDEX(Objednavka!A:I,19,4) -> 2061 | J34: =INDEX(Objednavka!A:I,19,5) -> 2370.15 | K34: =INDEX(Objednavka!A:I,19,7) -> 0 | L34: =INDEX(Objednavka!A:I,19,8) -> 0 | N34: =IF(INDEX(Objednavka!A:J,19,10)="","",INDEX(Objednavka!A:J,19,10)) -> 
B35: =IF(INDEX(Objednavka!A:I,20,3)="",INDEX(Objednavka!A:I,20,1),INDEX(Objednavka!A:I,20,3)) -> Bolívie - Altura EP Washed Bourbon Organic - 10 Kg | H35: =INDEX(Objednavka!A:I,20,4) -> 3617 | J35: =INDEX(Objednavka!A:I,20,5) -> 4159.55 | K35: =INDEX(Objednavka!A:I,20,7) -> 0 | L35: =INDEX(Objednavka!A:I,20,8) -> 0 | N35: =IF(INDEX(Objednavka!A:J,20,10)="","",INDEX(Objednavka!A:J,20,10)) -> 
B36: =IF(INDEX(Objednavka!A:I,21,3)="",INDEX(Objednavka!A:I,21,1),INDEX(Objednavka!A:I,21,3)) -> Bolívie - Altura EP Washed Bourbon Organic - 20 Kg | H36: =INDEX(Objednavka!A:I,21,4) -> 6452 | J36: =INDEX(Objednavka!A:I,21,5) -> 7419.8 | K36: =INDEX(Objednavka!A:I,21,7) -> 0 | L36: =INDEX(Objednavka!A:I,21,8) -> 0 | N36: =IF(INDEX(Objednavka!A:J,21,10)="","",INDEX(Objednavka!A:J,21,10)) -> 
B37: =IF(INDEX(Objednavka!A:I,22,3)="",INDEX(Objednavka!A:I,22,1),INDEX(Objednavka!A:I,22,3)) -> Bolívie - Altura EP Washed Bourbon Organic - 40 Kg | H37: =INDEX(Objednavka!A:I,22,4) -> 11617 | J37: =INDEX(Objednavka!A:I,22,5) -> 13359.55 | K37: =INDEX(Objednavka!A:I,22,7) -> 0 | L37: =INDEX(Objednavka!A:I,22,8) -> 0 | N37: =IF(INDEX(Objednavka!A:J,22,10)="","",INDEX(Objednavka!A:J,22,10)) -> 
B38: =IF(INDEX(Objednavka!A:I,23,3)="",INDEX(Objednavka!A:I,23,1),INDEX(Objednavka!A:I,23,3)) -> Bolívie - Altura EP Washed Bourbon Organic - 60 Kg | H38: =INDEX(Objednavka!A:I,23,4) -> 15861 | J38: =INDEX(Objednavka!A:I,23,5) -> 18240.15 | K38: =INDEX(Objednavka!A:I,23,7) -> 0 | L38: =INDEX(Objednavka!A:I,23,8) -> 0 | N38: =IF(INDEX(Objednavka!A:J,23,10)="","",INDEX(Objednavka!A:J,23,10)) -> 
B39: =IF(INDEX(Objednavka!A:I,24,3)="",INDEX(Objednavka!A:I,24,1),INDEX(Objednavka!A:I,24,3)) -> Bolívie - Altura EP Washed Bourbon Organic - 60 Kg - min. odběr 10 pytlů | H39: =INDEX(Objednavka!A:I,24,4) -> 14765 | J39: =INDEX(Objednavka!A:I,24,5) -> 16979.75 | K39: =INDEX(Objednavka!A:I,24,7) -> 0 | L39: =INDEX(Objednavka!A:I,24,8) -> 0 | N39: =IF(INDEX(Objednavka!A:J,24,10)="","",INDEX(Objednavka!A:J,24,10)) -> 
B40: =IF(INDEX(Objednavka!A:I,25,3)="",INDEX(Objednavka!A:I,25,1),INDEX(Objednavka!A:I,25,3)) -> Brazílie - Santos NY 2/3, Scr 17/18 - 1 Kg | H40: =INDEX(Objednavka!A:I,25,4) -> 178 | J40: =INDEX(Objednavka!A:I,25,5) -> 204.7 | K40: =INDEX(Objednavka!A:I,25,7) -> 0 | L40: =INDEX(Objednavka!A:I,25,8) -> 0 | N40: =IF(INDEX(Objednavka!A:J,25,10)="","",INDEX(Objednavka!A:J,25,10)) -> 
B41: =IF(INDEX(Objednavka!A:I,26,3)="",INDEX(Objednavka!A:I,26,1),INDEX(Objednavka!A:I,26,3)) -> Brazílie - Santos NY 2/3, Scr 17/18 - 5 Kg | H41: =INDEX(Objednavka!A:I,26,4) -> 765 | J41: =INDEX(Objednavka!A:I,26,5) -> 879.75 | K41: =INDEX(Objednavka!A:I,26,7) -> 0 | L41: =INDEX(Objednavka!A:I,26,8) -> 0 | N41: =IF(INDEX(Objednavka!A:J,26,10)="","",INDEX(Objednavka!A:J,26,10)) -> 
B42: =IF(INDEX(Objednavka!A:I,27,3)="",INDEX(Objednavka!A:I,27,1),INDEX(Objednavka!A:I,27,3)) -> Brazílie - Santos NY 2/3, Scr 17/18 - 10 Kg | H42: =INDEX(Objednavka!A:I,27,4) -> 1348 | J42: =INDEX(Objednavka!A:I,27,5) -> 1550.2 | K42: =INDEX(Objednavka!A:I,27,7) -> 0 | L42: =INDEX(Objednavka!A:I,27,8) -> 0 | N42: =IF(INDEX(Objednavka!A:J,27,10)="","",INDEX(Objednavka!A:J,27,10)) -> 
B43: =IF(INDEX(Objednavka!A:I,28,3)="",INDEX(Objednavka!A:I,28,1),INDEX(Objednavka!A:I,28,3)) -> Brazílie - Santos NY 2/3, Scr 17/18 - 20 Kg | H43: =INDEX(Objednavka!A:I,28,4) -> 2400 | J43: =INDEX(Objednavka!A:I,28,5) -> 2760 | K43: =INDEX(Objednavka!A:I,28,7) -> 0 | L43: =INDEX(Objednavka!A:I,28,8) -> 0 | N43: =IF(INDEX(Objednavka!A:J,28,10)="","",INDEX(Objednavka!A:J,28,10)) -> 
B44: =IF(INDEX(Objednavka!A:I,29,3)="",INDEX(Objednavka!A:I,29,1),INDEX(Objednavka!A:I,29,3)) -> Brazílie - Santos NY 2/3, Scr 17/18 - 40 Kg | H44: =INDEX(Objednavka!A:I,29,4) -> 4313 | J44: =INDEX(Objednavka!A:I,29,5) -> 4959.95 | K44: =INDEX(Objednavka!A:I,29,7) -> 0 | L44: =INDEX(Objednavka!A:I,29,8) -> 0 | N44: =IF(INDEX(Objednavka!A:J,29,10)="","",INDEX(Objednavka!A:J,29,10)) -> 
B45: =IF(INDEX(Objednavka!A:I,30,3)="",INDEX(Objednavka!A:I,30,1),INDEX(Objednavka!A:I,30,3)) -> Brazílie - Santos NY 2/3, Scr 17/18 - 59 Kg | H45: =INDEX(Objednavka!A:I,30,4) -> 5797 | J45: =INDEX(Objednavka!A:I,30,5) -> 6666.55 | K45: =INDEX(Objednavka!A:I,30,7) -> 0 | L45: =INDEX(Objednavka!A:I,30,8) -> 0 | N45: =IF(INDEX(Objednavka!A:J,30,10)="","",INDEX(Objednavka!A:J,30,10)) -> 
B46: =IF(INDEX(Objednavka!A:I,31,3)="",INDEX(Objednavka!A:I,31,1),INDEX(Objednavka!A:I,31,3)) -> Brazílie - Santos NY 2/3, Scr 17/18 - 59 Kg - min. odběr 10 pytlů | H46: =INDEX(Objednavka!A:I,31,4) -> 5387 | J46: =INDEX(Objednavka!A:I,31,5) -> 6195.05 | K46: =INDEX(Objednavka!A:I,31,7) -> 0 | L46: =INDEX(Objednavka!A:I,31,8) -> 0 | N46: =IF(INDEX(Objednavka!A:J,31,10)="","",INDEX(Objednavka!A:J,31,10)) -> 
B47: =IF(INDEX(Objednavka!A:I,32,3)="",INDEX(Objednavka!A:I,32,1),INDEX(Objednavka!A:I,32,3)) -> Burundi - 1 Kg | H47: =INDEX(Objednavka!A:I,32,4) -> 410 | J47: =INDEX(Objednavka!A:I,32,5) -> 471.5 | K47: =INDEX(Objednavka!A:I,32,7) -> 0 | L47: =INDEX(Objednavka!A:I,32,8) -> 0 | N47: =IF(INDEX(Objednavka!A:J,32,10)="","",INDEX(Objednavka!A:J,32,10)) -> 
B48: =IF(INDEX(Objednavka!A:I,33,3)="",INDEX(Objednavka!A:I,33,1),INDEX(Objednavka!A:I,33,3)) -> Burundi - 5 Kg | H48: =INDEX(Objednavka!A:I,33,4) -> 1760 | J48: =INDEX(Objednavka!A:I,33,5) -> 2024 | K48: =INDEX(Objednavka!A:I,33,7) -> 0 | L48: =INDEX(Objednavka!A:I,33,8) -> 0 | N48: =IF(INDEX(Objednavka!A:J,33,10)="","",INDEX(Objednavka!A:J,33,10)) -> 
B49: =IF(INDEX(Objednavka!A:I,34,3)="",INDEX(Objednavka!A:I,34,1),INDEX(Objednavka!A:I,34,3)) -> Burundi - 10 Kg | H49: =INDEX(Objednavka!A:I,34,4) -> 3087 | J49: =INDEX(Objednavka!A:I,34,5) -> 3550.05 | K49: =INDEX(Objednavka!A:I,34,7) -> 0 | L49: =INDEX(Objednavka!A:I,34,8) -> 0 | N49: =IF(INDEX(Objednavka!A:J,34,10)="","",INDEX(Objednavka!A:J,34,10)) -> 
B50: =IF(INDEX(Objednavka!A:I,35,3)="",INDEX(Objednavka!A:I,35,1),INDEX(Objednavka!A:I,35,3)) -> Burundi - 20 Kg | H50: =INDEX(Objednavka!A:I,35,4) -> 5513 | J50: =INDEX(Objednavka!A:I,35,5) -> 6339.95 | K50: =INDEX(Objednavka!A:I,35,7) -> 0 | L50: =INDEX(Objednavka!A:I,35,8) -> 0 | N50: =IF(INDEX(Objednavka!A:J,35,10)="","",INDEX(Objednavka!A:J,35,10)) -> 
B51: =IF(INDEX(Objednavka!A:I,36,3)="",INDEX(Objednavka!A:I,36,1),INDEX(Objednavka!A:I,36,3)) -> Burundi - 40 Kg | H51: =INDEX(Objednavka!A:I,36,4) -> 9948 | J51: =INDEX(Objednavka!A:I,36,5) -> 11440.2 | K51: =INDEX(Objednavka!A:I,36,7) -> 0 | L51: =INDEX(Objednavka!A:I,36,8) -> 0 | N51: =IF(INDEX(Objednavka!A:J,36,10)="","",INDEX(Objednavka!A:J,36,10)) -> 
B52: =IF(INDEX(Objednavka!A:I,37,3)="",INDEX(Objednavka!A:I,37,1),INDEX(Objednavka!A:I,37,3)) -> Burundi - 60 Kg | H52: =INDEX(Objednavka!A:I,37,4) -> 13565 | J52: =INDEX(Objednavka!A:I,37,5) -> 15599.75 | K52: =INDEX(Objednavka!A:I,37,7) -> 0 | L52: =INDEX(Objednavka!A:I,37,8) -> 0 | N52: =IF(INDEX(Objednavka!A:J,37,10)="","",INDEX(Objednavka!A:J,37,10)) -> 
B53: =IF(INDEX(Objednavka!A:I,38,3)="",INDEX(Objednavka!A:I,38,1),INDEX(Objednavka!A:I,38,3)) -> Burundi - 60 Kg - min. odběr 10 pytlů | H53: =INDEX(Objednavka!A:I,38,4) -> 12626 | J53: =INDEX(Objednavka!A:I,38,5) -> 14519.9 | K53: =INDEX(Objednavka!A:I,38,7) -> 0 | L53: =INDEX(Objednavka!A:I,38,8) -> 0 | N53: =IF(INDEX(Objednavka!A:J,38,10)="","",INDEX(Objednavka!A:J,38,10)) -> 
B54: =IF(INDEX(Objednavka!A:I,39,3)="",INDEX(Objednavka!A:I,39,1),INDEX(Objednavka!A:I,39,3)) -> Dominikánská republika - Cerro Prieto Estate Washed, Miguel Tejada - 1 Kg | H54: =INDEX(Objednavka!A:I,39,4) -> 433 | J54: =INDEX(Objednavka!A:I,39,5) -> 497.95 | K54: =INDEX(Objednavka!A:I,39,7) -> 0 | L54: =INDEX(Objednavka!A:I,39,8) -> 0 | N54: =IF(INDEX(Objednavka!A:J,39,10)="","",INDEX(Objednavka!A:J,39,10)) -> 
B55: =IF(INDEX(Objednavka!A:I,40,3)="",INDEX(Objednavka!A:I,40,1),INDEX(Objednavka!A:I,40,3)) -> Dominikánská republika - Cerro Prieto Estate Washed, Miguel Tejada - 5 Kg | H55: =INDEX(Objednavka!A:I,40,4) -> 1861 | J55: =INDEX(Objednavka!A:I,40,5) -> 2140.15 | K55: =INDEX(Objednavka!A:I,40,7) -> 0 | L55: =INDEX(Objednavka!A:I,40,8) -> 0 | N55: =IF(INDEX(Objednavka!A:J,40,10)="","",INDEX(Objednavka!A:J,40,10)) -> 
B56: =IF(INDEX(Objednavka!A:I,41,3)="",INDEX(Objednavka!A:I,41,1),INDEX(Objednavka!A:I,41,3)) -> Dominikánská republika - Cerro Prieto Estate Washed, Miguel Tejada - 10 Kg | H56: =INDEX(Objednavka!A:I,41,4) -> 3270 | J56: =INDEX(Objednavka!A:I,41,5) -> 3760.5 | K56: =INDEX(Objednavka!A:I,41,7) -> 0 | L56: =INDEX(Objednavka!A:I,41,8) -> 0 | N56: =IF(INDEX(Objednavka!A:J,41,10)="","",INDEX(Objednavka!A:J,41,10)) -> 
B57: =IF(INDEX(Objednavka!A:I,42,3)="",INDEX(Objednavka!A:I,42,1),INDEX(Objednavka!A:I,42,3)) -> Dominikánská republika - Cerro Prieto Estate Washed, Miguel Tejada - 20 Kg | H57: =INDEX(Objednavka!A:I,42,4) -> 5826 | J57: =INDEX(Objednavka!A:I,42,5) -> 6699.9 | K57: =INDEX(Objednavka!A:I,42,7) -> 0 | L57: =INDEX(Objednavka!A:I,42,8) -> 0 | N57: =IF(INDEX(Objednavka!A:J,42,10)="","",INDEX(Objednavka!A:J,42,10)) -> 
B58: =IF(INDEX(Objednavka!A:I,43,3)="",INDEX(Objednavka!A:I,43,1),INDEX(Objednavka!A:I,43,3)) -> Dominikánská republika - Cerro Prieto Estate Washed, Miguel Tejada - 40 Kg | H58: =INDEX(Objednavka!A:I,43,4) -> 10504 | J58: =INDEX(Objednavka!A:I,43,5) -> 12079.6 | K58: =INDEX(Objednavka!A:I,43,7) -> 0 | L58: =INDEX(Objednavka!A:I,43,8) -> 0 | N58: =IF(INDEX(Objednavka!A:J,43,10)="","",INDEX(Objednavka!A:J,43,10)) -> 
B59: =IF(INDEX(Objednavka!A:I,44,3)="",INDEX(Objednavka!A:I,44,1),INDEX(Objednavka!A:I,44,3)) -> Dominikánská republika - Cerro Prieto Estate Washed, Miguel Tejada - 75 Kg | H59: =INDEX(Objednavka!A:I,44,4) -> 17935 | J59: =INDEX(Objednavka!A:I,44,5) -> 20625.25 | K59: =INDEX(Objednavka!A:I,44,7) -> 0 | L59: =INDEX(Objednavka!A:I,44,8) -> 0 | N59: =IF(INDEX(Objednavka!A:J,44,10)="","",INDEX(Objednavka!A:J,44,10)) -> 
B60: =IF(INDEX(Objednavka!A:I,45,3)="",INDEX(Objednavka!A:I,45,1),INDEX(Objednavka!A:I,45,3)) -> Dominikánská republika - Cerro Prieto Estate Washed, Miguel Tejada - 75 Kg - min. odběr 10 pytlů | H60: =INDEX(Objednavka!A:I,45,4) -> 16696 | J60: =INDEX(Objednavka!A:I,45,5) -> 19200.4 | K60: =INDEX(Objednavka!A:I,45,7) -> 0 | L60: =INDEX(Objednavka!A:I,45,8) -> 0 | N60: =IF(INDEX(Objednavka!A:J,45,10)="","",INDEX(Objednavka!A:J,45,10)) -> 
B61: =IF(INDEX(Objednavka!A:I,46,3)="",INDEX(Objednavka!A:I,46,1),INDEX(Objednavka!A:I,46,3)) -> Etiopie Sidamo Mamo Kacha - Washed Gr. 2 - 1 Kg | H61: =INDEX(Objednavka!A:I,46,4) -> 365 | J61: =INDEX(Objednavka!A:I,46,5) -> 419.75 | K61: =INDEX(Objednavka!A:I,46,7) -> 0 | L61: =INDEX(Objednavka!A:I,46,8) -> 0 | N61: =IF(INDEX(Objednavka!A:J,46,10)="","",INDEX(Objednavka!A:J,46,10)) -> 
B62: =IF(INDEX(Objednavka!A:I,47,3)="",INDEX(Objednavka!A:I,47,1),INDEX(Objednavka!A:I,47,3)) -> Etiopie Sidamo Mamo Kacha - Washed Gr. 2 - 5 Kg | H62: =INDEX(Objednavka!A:I,47,4) -> 1570 | J62: =INDEX(Objednavka!A:I,47,5) -> 1805.5 | K62: =INDEX(Objednavka!A:I,47,7) -> 0 | L62: =INDEX(Objednavka!A:I,47,8) -> 0 | N62: =IF(INDEX(Objednavka!A:J,47,10)="","",INDEX(Objednavka!A:J,47,10)) -> 
B63: =IF(INDEX(Objednavka!A:I,48,3)="",INDEX(Objednavka!A:I,48,1),INDEX(Objednavka!A:I,48,3)) -> Etiopie Sidamo Mamo Kacha - Washed Gr. 2 - 10 Kg | H63: =INDEX(Objednavka!A:I,48,4) -> 2757 | J63: =INDEX(Objednavka!A:I,48,5) -> 3170.55 | K63: =INDEX(Objednavka!A:I,48,7) -> 0 | L63: =INDEX(Objednavka!A:I,48,8) -> 0 | N63: =IF(INDEX(Objednavka!A:J,48,10)="","",INDEX(Objednavka!A:J,48,10)) -> 
B64: =IF(INDEX(Objednavka!A:I,49,3)="",INDEX(Objednavka!A:I,49,1),INDEX(Objednavka!A:I,49,3)) -> Etiopie Sidamo Mamo Kacha - Washed Gr. 2 - 20 Kg | H64: =INDEX(Objednavka!A:I,49,4) -> 4922 | J64: =INDEX(Objednavka!A:I,49,5) -> 5660.3 | K64: =INDEX(Objednavka!A:I,49,7) -> 0 | L64: =INDEX(Objednavka!A:I,49,8) -> 0 | N64: =IF(INDEX(Objednavka!A:J,49,10)="","",INDEX(Objednavka!A:J,49,10)) -> 
B65: =IF(INDEX(Objednavka!A:I,50,3)="",INDEX(Objednavka!A:I,50,1),INDEX(Objednavka!A:I,50,3)) -> Etiopie Sidamo Mamo Kacha - Washed Gr. 2 - 40 Kg | H65: =INDEX(Objednavka!A:I,50,4) -> 8870 | J65: =INDEX(Objednavka!A:I,50,5) -> 10200.5 | K65: =INDEX(Objednavka!A:I,50,7) -> 0 | L65: =INDEX(Objednavka!A:I,50,8) -> 0 | N65: =IF(INDEX(Objednavka!A:J,50,10)="","",INDEX(Objednavka!A:J,50,10)) -> 
B66: =IF(INDEX(Objednavka!A:I,51,3)="",INDEX(Objednavka!A:I,51,1),INDEX(Objednavka!A:I,51,3)) -> Etiopie Sidamo Mamo Kacha - Washed Gr. 2 - 60 Kg | H66: =INDEX(Objednavka!A:I,51,4) -> 12104 | J66: =INDEX(Objednavka!A:I,51,5) -> 13919.6 | K66: =INDEX(Objednavka!A:I,51,7) -> 0 | L66: =INDEX(Objednavka!A:I,51,8) -> 0 | N66: =IF(INDEX(Objednavka!A:J,51,10)="","",INDEX(Objednavka!A:J,51,10)) -> 
B67: =IF(INDEX(Objednavka!A:I,52,3)="",INDEX(Objednavka!A:I,52,1),INDEX(Objednavka!A:I,52,3)) -> Etiopie Sidamo Mamo Kacha - Washed Gr. 2 - 60 Kg - min. odběr 10 pytlů | H67: =INDEX(Objednavka!A:I,52,4) -> 11270 | J67: =INDEX(Objednavka!A:I,52,5) -> 12960.5 | K67: =INDEX(Objednavka!A:I,52,7) -> 0 | L67: =INDEX(Objednavka!A:I,52,8) -> 0 | N67: =IF(INDEX(Objednavka!A:J,52,10)="","",INDEX(Objednavka!A:J,52,10)) -> 
B68: =IF(INDEX(Objednavka!A:I,53,3)="",INDEX(Objednavka!A:I,53,1),INDEX(Objednavka!A:I,53,3)) -> Etiopie Yirgacheffe - 1 Kg | H68: =INDEX(Objednavka!A:I,53,4) -> 435 | J68: =INDEX(Objednavka!A:I,53,5) -> 500.25 | K68: =INDEX(Objednavka!A:I,53,7) -> 0 | L68: =INDEX(Objednavka!A:I,53,8) -> 0 | N68: =IF(INDEX(Objednavka!A:J,53,10)="","",INDEX(Objednavka!A:J,53,10)) -> 
B69: =IF(INDEX(Objednavka!A:I,54,3)="",INDEX(Objednavka!A:I,54,1),INDEX(Objednavka!A:I,54,3)) -> Etiopie Yirgacheffe - 5 Kg | H69: =INDEX(Objednavka!A:I,54,4) -> 1870 | J69: =INDEX(Objednavka!A:I,54,5) -> 2150.5 | K69: =INDEX(Objednavka!A:I,54,7) -> 0 | L69: =INDEX(Objednavka!A:I,54,8) -> 0 | N69: =IF(INDEX(Objednavka!A:J,54,10)="","",INDEX(Objednavka!A:J,54,10)) -> 
B70: =IF(INDEX(Objednavka!A:I,55,3)="",INDEX(Objednavka!A:I,55,1),INDEX(Objednavka!A:I,55,3)) -> Etiopie Yirgacheffe - 10 Kg | H70: =INDEX(Objednavka!A:I,55,4) -> 3287 | J70: =INDEX(Objednavka!A:I,55,5) -> 3780.05 | K70: =INDEX(Objednavka!A:I,55,7) -> 0 | L70: =INDEX(Objednavka!A:I,55,8) -> 0 | N70: =IF(INDEX(Objednavka!A:J,55,10)="","",INDEX(Objednavka!A:J,55,10)) -> 
B71: =IF(INDEX(Objednavka!A:I,56,3)="",INDEX(Objednavka!A:I,56,1),INDEX(Objednavka!A:I,56,3)) -> Etiopie Yirgacheffe - 20 Kg | H71: =INDEX(Objednavka!A:I,56,4) -> 5843 | J71: =INDEX(Objednavka!A:I,56,5) -> 6719.45 | K71: =INDEX(Objednavka!A:I,56,7) -> 0 | L71: =INDEX(Objednavka!A:I,56,8) -> 0 | N71: =IF(INDEX(Objednavka!A:J,56,10)="","",INDEX(Objednavka!A:J,56,10)) -> 
B72: =IF(INDEX(Objednavka!A:I,57,3)="",INDEX(Objednavka!A:I,57,1),INDEX(Objednavka!A:I,57,3)) -> Etiopie Yirgacheffe - 40 Kg | H72: =INDEX(Objednavka!A:I,57,4) -> 10539 | J72: =INDEX(Objednavka!A:I,57,5) -> 12119.85 | K72: =INDEX(Objednavka!A:I,57,7) -> 0 | L72: =INDEX(Objednavka!A:I,57,8) -> 0 | N72: =IF(INDEX(Objednavka!A:J,57,10)="","",INDEX(Objednavka!A:J,57,10)) -> 
B73: =IF(INDEX(Objednavka!A:I,58,3)="",INDEX(Objednavka!A:I,58,1),INDEX(Objednavka!A:I,58,3)) -> Etiopie Yirgacheffe - 60 Kg | H73: =INDEX(Objednavka!A:I,58,4) -> 14400 | J73: =INDEX(Objednavka!A:I,58,5) -> 16560 | K73: =INDEX(Objednavka!A:I,58,7) -> 0 | L73: =INDEX(Objednavka!A:I,58,8) -> 0 | N73: =IF(INDEX(Objednavka!A:J,58,10)="","",INDEX(Objednavka!A:J,58,10)) -> 
B74: =IF(INDEX(Objednavka!A:I,59,3)="",INDEX(Objednavka!A:I,59,1),INDEX(Objednavka!A:I,59,3)) -> Etiopie Yirgacheffe - 60 Kg - min. odběr 10 pytlů | H74: =INDEX(Objednavka!A:I,59,4) -> 13409 | J74: =INDEX(Objednavka!A:I,59,5) -> 15420.35 | K74: =INDEX(Objednavka!A:I,59,7) -> 0 | L74: =INDEX(Objednavka!A:I,59,8) -> 0 | N74: =IF(INDEX(Objednavka!A:J,59,10)="","",INDEX(Objednavka!A:J,59,10)) -> 
B75: =IF(INDEX(Objednavka!A:I,60,3)="",INDEX(Objednavka!A:I,60,1),INDEX(Objednavka!A:I,60,3)) -> Guatemala SHB EP Santa Rosa - 1 Kg | H75: =INDEX(Objednavka!A:I,60,4) -> 274 | J75: =INDEX(Objednavka!A:I,60,5) -> 315.1 | K75: =INDEX(Objednavka!A:I,60,7) -> 0 | L75: =INDEX(Objednavka!A:I,60,8) -> 0 | N75: =IF(INDEX(Objednavka!A:J,60,10)="","",INDEX(Objednavka!A:J,60,10)) -> 
B76: =IF(INDEX(Objednavka!A:I,61,3)="",INDEX(Objednavka!A:I,61,1),INDEX(Objednavka!A:I,61,3)) -> Guatemala SHB EP Santa Rosa - 5 Kg | H76: =INDEX(Objednavka!A:I,61,4) -> 1178 | J76: =INDEX(Objednavka!A:I,61,5) -> 1354.7 | K76: =INDEX(Objednavka!A:I,61,7) -> 0 | L76: =INDEX(Objednavka!A:I,61,8) -> 0 | N76: =IF(INDEX(Objednavka!A:J,61,10)="","",INDEX(Objednavka!A:J,61,10)) -> 
B77: =IF(INDEX(Objednavka!A:I,62,3)="",INDEX(Objednavka!A:I,62,1),INDEX(Objednavka!A:I,62,3)) -> Guatemala SHB EP Santa Rosa - 10 Kg | H77: =INDEX(Objednavka!A:I,62,4) -> 2070 | J77: =INDEX(Objednavka!A:I,62,5) -> 2380.5 | K77: =INDEX(Objednavka!A:I,62,7) -> 0 | L77: =INDEX(Objednavka!A:I,62,8) -> 0 | N77: =IF(INDEX(Objednavka!A:J,62,10)="","",INDEX(Objednavka!A:J,62,10)) -> 
B78: =IF(INDEX(Objednavka!A:I,63,3)="",INDEX(Objednavka!A:I,63,1),INDEX(Objednavka!A:I,63,3)) -> Guatemala SHB EP Santa Rosa - 20 Kg | H78: =INDEX(Objednavka!A:I,63,4) -> 3687 | J78: =INDEX(Objednavka!A:I,63,5) -> 4240.05 | K78: =INDEX(Objednavka!A:I,63,7) -> 0 | L78: =INDEX(Objednavka!A:I,63,8) -> 0 | N78: =IF(INDEX(Objednavka!A:J,63,10)="","",INDEX(Objednavka!A:J,63,10)) -> 
B79: =IF(INDEX(Objednavka!A:I,64,3)="",INDEX(Objednavka!A:I,64,1),INDEX(Objednavka!A:I,64,3)) -> Guatemala SHB EP Santa Rosa - 40 Kg | H79: =INDEX(Objednavka!A:I,64,4) -> 6643 | J79: =INDEX(Objednavka!A:I,64,5) -> 7639.45 | K79: =INDEX(Objednavka!A:I,64,7) -> 0 | L79: =INDEX(Objednavka!A:I,64,8) -> 0 | N79: =IF(INDEX(Objednavka!A:J,64,10)="","",INDEX(Objednavka!A:J,64,10)) -> 
B80: =IF(INDEX(Objednavka!A:I,65,3)="",INDEX(Objednavka!A:I,65,1),INDEX(Objednavka!A:I,65,3)) -> Guatemala SHB EP Santa Rosa - 69 Kg | H80: =INDEX(Objednavka!A:I,65,4) -> 10440 | J80: =INDEX(Objednavka!A:I,65,5) -> 12006 | K80: =INDEX(Objednavka!A:I,65,7) -> 0 | L80: =INDEX(Objednavka!A:I,65,8) -> 0 | N80: =IF(INDEX(Objednavka!A:J,65,10)="","",INDEX(Objednavka!A:J,65,10)) -> 
B81: =IF(INDEX(Objednavka!A:I,66,3)="",INDEX(Objednavka!A:I,66,1),INDEX(Objednavka!A:I,66,3)) -> Guatemala SHB EP Santa Rosa - 69 Kg - min. odběr 10 pytlů | H81: =INDEX(Objednavka!A:I,66,4) -> 9720 | J81: =INDEX(Objednavka!A:I,66,5) -> 11178 | K81: =INDEX(Objednavka!A:I,66,7) -> 0 | L81: =INDEX(Objednavka!A:I,66,8) -> 0 | N81: =IF(INDEX(Objednavka!A:J,66,10)="","",INDEX(Objednavka!A:J,66,10)) -> 
B82: =IF(INDEX(Objednavka!A:I,67,3)="",INDEX(Objednavka!A:I,67,1),INDEX(Objednavka!A:I,67,3)) -> Hawaii Kona - 1 Kg | H82: =INDEX(Objednavka!A:I,67,4) -> 2184 | J82: =INDEX(Objednavka!A:I,67,5) -> 2511.6 | K82: =INDEX(Objednavka!A:I,67,7) -> 0 | L82: =INDEX(Objednavka!A:I,67,8) -> 0 | N82: =IF(INDEX(Objednavka!A:J,67,10)="","",INDEX(Objednavka!A:J,67,10)) -> 
B83: =IF(INDEX(Objednavka!A:I,68,3)="",INDEX(Objednavka!A:I,68,1),INDEX(Objednavka!A:I,68,3)) -> Hawaii Kona - 5 Kg | H83: =INDEX(Objednavka!A:I,68,4) -> 9396 | J83: =INDEX(Objednavka!A:I,68,5) -> 10805.4 | K83: =INDEX(Objednavka!A:I,68,7) -> 0 | L83: =INDEX(Objednavka!A:I,68,8) -> 0 | N83: =IF(INDEX(Objednavka!A:J,68,10)="","",INDEX(Objednavka!A:J,68,10)) -> 
B84: =IF(INDEX(Objednavka!A:I,69,3)="",INDEX(Objednavka!A:I,69,1),INDEX(Objednavka!A:I,69,3)) -> Hawaii Kona - 10 Kg | H84: =INDEX(Objednavka!A:I,69,4) -> 16487 | J84: =INDEX(Objednavka!A:I,69,5) -> 18960.05 | K84: =INDEX(Objednavka!A:I,69,7) -> 0 | L84: =INDEX(Objednavka!A:I,69,8) -> 0 | N84: =IF(INDEX(Objednavka!A:J,69,10)="","",INDEX(Objednavka!A:J,69,10)) -> 
B85: =IF(INDEX(Objednavka!A:I,70,3)="",INDEX(Objednavka!A:I,70,1),INDEX(Objednavka!A:I,70,3)) -> Hawaii Kona - 20 Kg | H85: =INDEX(Objednavka!A:I,70,4) -> 29374 | J85: =INDEX(Objednavka!A:I,70,5) -> 33780.1 | K85: =INDEX(Objednavka!A:I,70,7) -> 0 | L85: =INDEX(Objednavka!A:I,70,8) -> 0 | N85: =IF(INDEX(Objednavka!A:J,70,10)="","",INDEX(Objednavka!A:J,70,10)) -> 
B86: =IF(INDEX(Objednavka!A:I,71,3)="",INDEX(Objednavka!A:I,71,1),INDEX(Objednavka!A:I,71,3)) -> Hawaii Kona - 40 Kg | H86: =INDEX(Objednavka!A:I,71,4) -> 52974 | J86: =INDEX(Objednavka!A:I,71,5) -> 60920.1 | K86: =INDEX(Objednavka!A:I,71,7) -> 0 | L86: =INDEX(Objednavka!A:I,71,8) -> 0 | N86: =IF(INDEX(Objednavka!A:J,71,10)="","",INDEX(Objednavka!A:J,71,10)) -> 
B87: =IF(INDEX(Objednavka!A:I,72,3)="",INDEX(Objednavka!A:I,72,1),INDEX(Objednavka!A:I,72,3)) -> Hawaii Kona - 60 Kg | H87: =INDEX(Objednavka!A:I,72,4) -> 72313 | J87: =INDEX(Objednavka!A:I,72,5) -> 83159.95 | K87: =INDEX(Objednavka!A:I,72,7) -> 0 | L87: =INDEX(Objednavka!A:I,72,8) -> 0 | N87: =IF(INDEX(Objednavka!A:J,72,10)="","",INDEX(Objednavka!A:J,72,10)) -> 
B88: =IF(INDEX(Objednavka!A:I,73,3)="",INDEX(Objednavka!A:I,73,1),INDEX(Objednavka!A:I,73,3)) -> Hawaii Kona - 60 Kg - min. odběr 10 pytlů | H88: =INDEX(Objednavka!A:I,73,4) -> 67304 | J88: =INDEX(Objednavka!A:I,73,5) -> 77399.6 | K88: =INDEX(Objednavka!A:I,73,7) -> 0 | L88: =INDEX(Objednavka!A:I,73,8) -> 0 | N88: =IF(INDEX(Objednavka!A:J,73,10)="","",INDEX(Objednavka!A:J,73,10)) -> 
B89: =IF(INDEX(Objednavka!A:I,74,3)="",INDEX(Objednavka!A:I,74,1),INDEX(Objednavka!A:I,74,3)) -> Honduras SHG EP - 1 Kg | H89: =INDEX(Objednavka!A:I,74,4) -> 224 | J89: =INDEX(Objednavka!A:I,74,5) -> 257.6 | K89: =INDEX(Objednavka!A:I,74,7) -> 0 | L89: =INDEX(Objednavka!A:I,74,8) -> 0 | N89: =IF(INDEX(Objednavka!A:J,74,10)="","",INDEX(Objednavka!A:J,74,10)) -> 
B90: =IF(INDEX(Objednavka!A:I,75,3)="",INDEX(Objednavka!A:I,75,1),INDEX(Objednavka!A:I,75,3)) -> Honduras SHG EP - 5 Kg | H90: =INDEX(Objednavka!A:I,75,4) -> 965 | J90: =INDEX(Objednavka!A:I,75,5) -> 1109.75 | K90: =INDEX(Objednavka!A:I,75,7) -> 0 | L90: =INDEX(Objednavka!A:I,75,8) -> 0 | N90: =IF(INDEX(Objednavka!A:J,75,10)="","",INDEX(Objednavka!A:J,75,10)) -> 
B91: =IF(INDEX(Objednavka!A:I,76,3)="",INDEX(Objednavka!A:I,76,1),INDEX(Objednavka!A:I,76,3)) -> Honduras SHG EP - 10 Kg | H91: =INDEX(Objednavka!A:I,76,4) -> 1696 | J91: =INDEX(Objednavka!A:I,76,5) -> 1950.4 | K91: =INDEX(Objednavka!A:I,76,7) -> 0 | L91: =INDEX(Objednavka!A:I,76,8) -> 0 | N91: =IF(INDEX(Objednavka!A:J,76,10)="","",INDEX(Objednavka!A:J,76,10)) -> 
B92: =IF(INDEX(Objednavka!A:I,77,3)="",INDEX(Objednavka!A:I,77,1),INDEX(Objednavka!A:I,77,3)) -> Honduras SHG EP - 20 Kg | H92: =INDEX(Objednavka!A:I,77,4) -> 3026 | J92: =INDEX(Objednavka!A:I,77,5) -> 3479.9 | K92: =INDEX(Objednavka!A:I,77,7) -> 0 | L92: =INDEX(Objednavka!A:I,77,8) -> 0 | N92: =IF(INDEX(Objednavka!A:J,77,10)="","",INDEX(Objednavka!A:J,77,10)) -> 
B93: =IF(INDEX(Objednavka!A:I,78,3)="",INDEX(Objednavka!A:I,78,1),INDEX(Objednavka!A:I,78,3)) -> Honduras SHG EP - 40 Kg | H93: =INDEX(Objednavka!A:I,78,4) -> 5461 | J93: =INDEX(Objednavka!A:I,78,5) -> 6280.15 | K93: =INDEX(Objednavka!A:I,78,7) -> 0 | L93: =INDEX(Objednavka!A:I,78,8) -> 0 | N93: =IF(INDEX(Objednavka!A:J,78,10)="","",INDEX(Objednavka!A:J,78,10)) -> 
B94: =IF(INDEX(Objednavka!A:I,79,3)="",INDEX(Objednavka!A:I,79,1),INDEX(Objednavka!A:I,79,3)) -> Honduras SHG EP - 69 Kg | H94: =INDEX(Objednavka!A:I,79,4) -> 8580 | J94: =INDEX(Objednavka!A:I,79,5) -> 9867 | K94: =INDEX(Objednavka!A:I,79,7) -> 0 | L94: =INDEX(Objednavka!A:I,79,8) -> 0 | N94: =IF(INDEX(Objednavka!A:J,79,10)="","",INDEX(Objednavka!A:J,79,10)) -> 
B95: =IF(INDEX(Objednavka!A:I,80,3)="",INDEX(Objednavka!A:I,80,1),INDEX(Objednavka!A:I,80,3)) -> Honduras SHG EP - 69 Kg - min. odběr 10 pytlů | H95: =INDEX(Objednavka!A:I,80,4) -> 7980 | J95: =INDEX(Objednavka!A:I,80,5) -> 9177 | K95: =INDEX(Objednavka!A:I,80,7) -> 0 | L95: =INDEX(Objednavka!A:I,80,8) -> 0 | N95: =IF(INDEX(Objednavka!A:J,80,10)="","",INDEX(Objednavka!A:J,80,10)) -> 
B96: =IF(INDEX(Objednavka!A:I,81,3)="",INDEX(Objednavka!A:I,81,1),INDEX(Objednavka!A:I,81,3)) -> Indie Plantation A - 1 Kg | H96: =INDEX(Objednavka!A:I,81,4) -> 271 | J96: =INDEX(Objednavka!A:I,81,5) -> 311.65 | K96: =INDEX(Objednavka!A:I,81,7) -> 0 | L96: =INDEX(Objednavka!A:I,81,8) -> 0 | N96: =IF(INDEX(Objednavka!A:J,81,10)="","",INDEX(Objednavka!A:J,81,10)) -> 
B97: =IF(INDEX(Objednavka!A:I,82,3)="",INDEX(Objednavka!A:I,82,1),INDEX(Objednavka!A:I,82,3)) -> Indie Plantation A - 5 Kg | H97: =INDEX(Objednavka!A:I,82,4) -> 1170 | J97: =INDEX(Objednavka!A:I,82,5) -> 1345.5 | K97: =INDEX(Objednavka!A:I,82,7) -> 0 | L97: =INDEX(Objednavka!A:I,82,8) -> 0 | N97: =IF(INDEX(Objednavka!A:J,82,10)="","",INDEX(Objednavka!A:J,82,10)) -> 
B98: =IF(INDEX(Objednavka!A:I,83,3)="",INDEX(Objednavka!A:I,83,1),INDEX(Objednavka!A:I,83,3)) -> Indie Plantation A - 10 Kg | H98: =INDEX(Objednavka!A:I,83,4) -> 2052 | J98: =INDEX(Objednavka!A:I,83,5) -> 2359.8 | K98: =INDEX(Objednavka!A:I,83,7) -> 0 | L98: =INDEX(Objednavka!A:I,83,8) -> 0 | N98: =IF(INDEX(Objednavka!A:J,83,10)="","",INDEX(Objednavka!A:J,83,10)) -> 
B99: =IF(INDEX(Objednavka!A:I,84,3)="",INDEX(Objednavka!A:I,84,1),INDEX(Objednavka!A:I,84,3)) -> Indie Plantation A - 20 Kg | H99: =INDEX(Objednavka!A:I,84,4) -> 3652 | J99: =INDEX(Objednavka!A:I,84,5) -> 4199.8 | K99: =INDEX(Objednavka!A:I,84,7) -> 0 | L99: =INDEX(Objednavka!A:I,84,8) -> 0 | N99: =IF(INDEX(Objednavka!A:J,84,10)="","",INDEX(Objednavka!A:J,84,10)) -> 
B100: =IF(INDEX(Objednavka!A:I,85,3)="",INDEX(Objednavka!A:I,85,1),INDEX(Objednavka!A:I,85,3)) -> Indie Plantation A - 40 Kg | H100: =INDEX(Objednavka!A:I,85,4) -> 6609 | J100: =INDEX(Objednavka!A:I,85,5) -> 7600.35 | K100: =INDEX(Objednavka!A:I,85,7) -> 0 | L100: =INDEX(Objednavka!A:I,85,8) -> 0 | N100: =IF(INDEX(Objednavka!A:J,85,10)="","",INDEX(Objednavka!A:J,85,10)) -> 
B101: =IF(INDEX(Objednavka!A:I,86,3)="",INDEX(Objednavka!A:I,86,1),INDEX(Objednavka!A:I,86,3)) -> Indie Plantation A - 60 Kg | H101: =INDEX(Objednavka!A:I,86,4) -> 9026 | J101: =INDEX(Objednavka!A:I,86,5) -> 10379.9 | K101: =INDEX(Objednavka!A:I,86,7) -> 0 | L101: =INDEX(Objednavka!A:I,86,8) -> 0 | N101: =IF(INDEX(Objednavka!A:J,86,10)="","",INDEX(Objednavka!A:J,86,10)) -> 
B102: =IF(INDEX(Objednavka!A:I,87,3)="",INDEX(Objednavka!A:I,87,1),INDEX(Objednavka!A:I,87,3)) -> Indie Plantation A - 60 Kg - min. odběr 10 pytlů | H102: =INDEX(Objednavka!A:I,87,4) -> 8400 | J102: =INDEX(Objednavka!A:I,87,5) -> 9660 | K102: =INDEX(Objednavka!A:I,87,7) -> 0 | L102: =INDEX(Objednavka!A:I,87,8) -> 0 | N102: =IF(INDEX(Objednavka!A:J,87,10)="","",INDEX(Objednavka!A:J,87,10)) -> 
B103: =IF(INDEX(Objednavka!A:I,88,3)="",INDEX(Objednavka!A:I,88,1),INDEX(Objednavka!A:I,88,3)) -> Indie Monsooned Malabar - 1 Kg | H103: =INDEX(Objednavka!A:I,88,4) -> 288 | J103: =INDEX(Objednavka!A:I,88,5) -> 331.2 | K103: =INDEX(Objednavka!A:I,88,7) -> 0 | L103: =INDEX(Objednavka!A:I,88,8) -> 0 | N103: =IF(INDEX(Objednavka!A:J,88,10)="","",INDEX(Objednavka!A:J,88,10)) -> 
B104: =IF(INDEX(Objednavka!A:I,89,3)="",INDEX(Objednavka!A:I,89,1),INDEX(Objednavka!A:I,89,3)) -> Indie Monsooned Malabar - 5 Kg | H104: =INDEX(Objednavka!A:I,89,4) -> 1235 | J104: =INDEX(Objednavka!A:I,89,5) -> 1420.25 | K104: =INDEX(Objednavka!A:I,89,7) -> 0 | L104: =INDEX(Objednavka!A:I,89,8) -> 0 | N104: =IF(INDEX(Objednavka!A:J,89,10)="","",INDEX(Objednavka!A:J,89,10)) -> 
B105: =IF(INDEX(Objednavka!A:I,90,3)="",INDEX(Objednavka!A:I,90,1),INDEX(Objednavka!A:I,90,3)) -> Indie Monsooned Malabar - 10 Kg | H105: =INDEX(Objednavka!A:I,90,4) -> 2174 | J105: =INDEX(Objednavka!A:I,90,5) -> 2500.1 | K105: =INDEX(Objednavka!A:I,90,7) -> 0 | L105: =INDEX(Objednavka!A:I,90,8) -> 0 | N105: =IF(INDEX(Objednavka!A:J,90,10)="","",INDEX(Objednavka!A:J,90,10)) -> 
B106: =IF(INDEX(Objednavka!A:I,91,3)="",INDEX(Objednavka!A:I,91,1),INDEX(Objednavka!A:I,91,3)) -> Indie Monsooned Malabar - 20 Kg | H106: =INDEX(Objednavka!A:I,91,4) -> 3861 | J106: =INDEX(Objednavka!A:I,91,5) -> 4440.15 | K106: =INDEX(Objednavka!A:I,91,7) -> 0 | L106: =INDEX(Objednavka!A:I,91,8) -> 0 | N106: =IF(INDEX(Objednavka!A:J,91,10)="","",INDEX(Objednavka!A:J,91,10)) -> 
B107: =IF(INDEX(Objednavka!A:I,92,3)="",INDEX(Objednavka!A:I,92,1),INDEX(Objednavka!A:I,92,3)) -> Indie Monsooned Malabar - 40 Kg | H107: =INDEX(Objednavka!A:I,92,4) -> 6991 | J107: =INDEX(Objednavka!A:I,92,5) -> 8039.65 | K107: =INDEX(Objednavka!A:I,92,7) -> 0 | L107: =INDEX(Objednavka!A:I,92,8) -> 0 | N107: =IF(INDEX(Objednavka!A:J,92,10)="","",INDEX(Objednavka!A:J,92,10)) -> 
B108: =IF(INDEX(Objednavka!A:I,93,3)="",INDEX(Objednavka!A:I,93,1),INDEX(Objednavka!A:I,93,3)) -> Indie Monsooned Malabar - 50 Kg | H108: =INDEX(Objednavka!A:I,93,4) -> 7957 | J108: =INDEX(Objednavka!A:I,93,5) -> 9150.55 | K108: =INDEX(Objednavka!A:I,93,7) -> 0 | L108: =INDEX(Objednavka!A:I,93,8) -> 0 | N108: =IF(INDEX(Objednavka!A:J,93,10)="","",INDEX(Objednavka!A:J,93,10)) -> 
B109: =IF(INDEX(Objednavka!A:I,94,3)="",INDEX(Objednavka!A:I,94,1),INDEX(Objednavka!A:I,94,3)) -> Indie Monsooned Malabar - 50 Kg - min. odběr 10 pytlů | H109: =INDEX(Objednavka!A:I,94,4) -> 7392 | J109: =INDEX(Objednavka!A:I,94,5) -> 8500.8 | K109: =INDEX(Objednavka!A:I,94,7) -> 0 | L109: =INDEX(Objednavka!A:I,94,8) -> 0 | N109: =IF(INDEX(Objednavka!A:J,94,10)="","",INDEX(Objednavka!A:J,94,10)) -> 
B110: =IF(INDEX(Objednavka!A:I,95,3)="",INDEX(Objednavka!A:I,95,1),INDEX(Objednavka!A:I,95,3)) -> Indonésie Sulawesi Kalossi - Benteng Alla Grade 1 - 1 Kg | H110: =INDEX(Objednavka!A:I,95,4) -> 380 | J110: =INDEX(Objednavka!A:I,95,5) -> 437 | K110: =INDEX(Objednavka!A:I,95,7) -> 0 | L110: =INDEX(Objednavka!A:I,95,8) -> 0 | N110: =IF(INDEX(Objednavka!A:J,95,10)="","",INDEX(Objednavka!A:J,95,10)) -> 
B111: =IF(INDEX(Objednavka!A:I,96,3)="",INDEX(Objednavka!A:I,96,1),INDEX(Objednavka!A:I,96,3)) -> Indonésie Sulawesi Kalossi - Benteng Alla Grade 1 - 5 Kg | H111: =INDEX(Objednavka!A:I,96,4) -> 1635 | J111: =INDEX(Objednavka!A:I,96,5) -> 1880.25 | K111: =INDEX(Objednavka!A:I,96,7) -> 0 | L111: =INDEX(Objednavka!A:I,96,8) -> 0 | N111: =IF(INDEX(Objednavka!A:J,96,10)="","",INDEX(Objednavka!A:J,96,10)) -> 
B112: =IF(INDEX(Objednavka!A:I,97,3)="",INDEX(Objednavka!A:I,97,1),INDEX(Objednavka!A:I,97,3)) -> Indonésie Sulawesi Kalossi - Benteng Alla Grade 1 - 10 Kg | H112: =INDEX(Objednavka!A:I,97,4) -> 2870 | J112: =INDEX(Objednavka!A:I,97,5) -> 3300.5 | K112: =INDEX(Objednavka!A:I,97,7) -> 0 | L112: =INDEX(Objednavka!A:I,97,8) -> 0 | N112: =IF(INDEX(Objednavka!A:J,97,10)="","",INDEX(Objednavka!A:J,97,10)) -> 
B113: =IF(INDEX(Objednavka!A:I,98,3)="",INDEX(Objednavka!A:I,98,1),INDEX(Objednavka!A:I,98,3)) -> Indonésie Sulawesi Kalossi - Benteng Alla Grade 1 - 20 Kg | H113: =INDEX(Objednavka!A:I,98,4) -> 5113 | J113: =INDEX(Objednavka!A:I,98,5) -> 5879.95 | K113: =INDEX(Objednavka!A:I,98,7) -> 0 | L113: =INDEX(Objednavka!A:I,98,8) -> 0 | N113: =IF(INDEX(Objednavka!A:J,98,10)="","",INDEX(Objednavka!A:J,98,10)) -> 
B114: =IF(INDEX(Objednavka!A:I,99,3)="",INDEX(Objednavka!A:I,99,1),INDEX(Objednavka!A:I,99,3)) -> Indonésie Sulawesi Kalossi - Benteng Alla Grade 1 - 40 Kg | H114: =INDEX(Objednavka!A:I,99,4) -> 9217 | J114: =INDEX(Objednavka!A:I,99,5) -> 10599.55 | K114: =INDEX(Objednavka!A:I,99,7) -> 0 | L114: =INDEX(Objednavka!A:I,99,8) -> 0 | N114: =IF(INDEX(Objednavka!A:J,99,10)="","",INDEX(Objednavka!A:J,99,10)) -> 
B115: =IF(INDEX(Objednavka!A:I,100,3)="",INDEX(Objednavka!A:I,100,1),INDEX(Objednavka!A:I,100,3)) -> Indonésie Sulawesi Kalossi - Benteng Alla Grade 1 - 60 Kg | H115: =INDEX(Objednavka!A:I,100,4) -> 12574 | J115: =INDEX(Objednavka!A:I,100,5) -> 14460.1 | K115: =INDEX(Objednavka!A:I,100,7) -> 0 | L115: =INDEX(Objednavka!A:I,100,8) -> 0 | N115: =IF(INDEX(Objednavka!A:J,100,10)="","",INDEX(Objednavka!A:J,100,10)) -> 
B116: =IF(INDEX(Objednavka!A:I,101,3)="",INDEX(Objednavka!A:I,101,1),INDEX(Objednavka!A:I,101,3)) -> Indonésie Sulawesi Kalossi - Benteng Alla Grade 1 - 60 Kg - min. odběr 10 pytlů | H116: =INDEX(Objednavka!A:I,101,4) -> 11739 | J116: =INDEX(Objednavka!A:I,101,5) -> 13499.85 | K116: =INDEX(Objednavka!A:I,101,7) -> 0 | L116: =INDEX(Objednavka!A:I,101,8) -> 0 | N116: =IF(INDEX(Objednavka!A:J,101,10)="","",INDEX(Objednavka!A:J,101,10)) -> 
B117: =IF(INDEX(Objednavka!A:I,102,3)="",INDEX(Objednavka!A:I,102,1),INDEX(Objednavka!A:I,102,3)) -> Keňa AA Plus - 1 Kg | H117: =INDEX(Objednavka!A:I,102,4) -> 416 | J117: =INDEX(Objednavka!A:I,102,5) -> 478.4 | K117: =INDEX(Objednavka!A:I,102,7) -> 0 | L117: =INDEX(Objednavka!A:I,102,8) -> 0 | N117: =IF(INDEX(Objednavka!A:J,102,10)="","",INDEX(Objednavka!A:J,102,10)) -> 
B118: =IF(INDEX(Objednavka!A:I,103,3)="",INDEX(Objednavka!A:I,103,1),INDEX(Objednavka!A:I,103,3)) -> Keňa AA Plus - 5 Kg | H118: =INDEX(Objednavka!A:I,103,4) -> 1787 | J118: =INDEX(Objednavka!A:I,103,5) -> 2055.05 | K118: =INDEX(Objednavka!A:I,103,7) -> 0 | L118: =INDEX(Objednavka!A:I,103,8) -> 0 | N118: =IF(INDEX(Objednavka!A:J,103,10)="","",INDEX(Objednavka!A:J,103,10)) -> 
B119: =IF(INDEX(Objednavka!A:I,104,3)="",INDEX(Objednavka!A:I,104,1),INDEX(Objednavka!A:I,104,3)) -> Keňa AA Plus - 10 Kg | H119: =INDEX(Objednavka!A:I,104,4) -> 3139 | J119: =INDEX(Objednavka!A:I,104,5) -> 3609.85 | K119: =INDEX(Objednavka!A:I,104,7) -> 0 | L119: =INDEX(Objednavka!A:I,104,8) -> 0 | N119: =IF(INDEX(Objednavka!A:J,104,10)="","",INDEX(Objednavka!A:J,104,10)) -> 
B120: =IF(INDEX(Objednavka!A:I,105,3)="",INDEX(Objednavka!A:I,105,1),INDEX(Objednavka!A:I,105,3)) -> Keňa AA Plus - 20 Kg | H120: =INDEX(Objednavka!A:I,105,4) -> 5600 | J120: =INDEX(Objednavka!A:I,105,5) -> 6440 | K120: =INDEX(Objednavka!A:I,105,7) -> 0 | L120: =INDEX(Objednavka!A:I,105,8) -> 0 | N120: =IF(INDEX(Objednavka!A:J,105,10)="","",INDEX(Objednavka!A:J,105,10)) -> 
B121: =IF(INDEX(Objednavka!A:I,106,3)="",INDEX(Objednavka!A:I,106,1),INDEX(Objednavka!A:I,106,3)) -> Keňa AA Plus - 40 Kg | H121: =INDEX(Objednavka!A:I,106,4) -> 10087 | J121: =INDEX(Objednavka!A:I,106,5) -> 11600.05 | K121: =INDEX(Objednavka!A:I,106,7) -> 0 | L121: =INDEX(Objednavka!A:I,106,8) -> 0 | N121: =IF(INDEX(Objednavka!A:J,106,10)="","",INDEX(Objednavka!A:J,106,10)) -> 
B122: =IF(INDEX(Objednavka!A:I,107,3)="",INDEX(Objednavka!A:I,107,1),INDEX(Objednavka!A:I,107,3)) -> Keňa AA Plus - 60 Kg | H122: =INDEX(Objednavka!A:I,107,4) -> 13774 | J122: =INDEX(Objednavka!A:I,107,5) -> 15840.1 | K122: =INDEX(Objednavka!A:I,107,7) -> 0 | L122: =INDEX(Objednavka!A:I,107,8) -> 0 | N122: =IF(INDEX(Objednavka!A:J,107,10)="","",INDEX(Objednavka!A:J,107,10)) -> 
B123: =IF(INDEX(Objednavka!A:I,108,3)="",INDEX(Objednavka!A:I,108,1),INDEX(Objednavka!A:I,108,3)) -> Keňa AA Plus - 60 Kg - min. odběr 10 pytlů | H123: =INDEX(Objednavka!A:I,108,4) -> 12834 | J123: =INDEX(Objednavka!A:I,108,5) -> 14759.1 | K123: =INDEX(Objednavka!A:I,108,7) -> 0 | L123: =INDEX(Objednavka!A:I,108,8) -> 0 | N123: =IF(INDEX(Objednavka!A:J,108,10)="","",INDEX(Objednavka!A:J,108,10)) -> 
B124: =IF(INDEX(Objednavka!A:I,109,3)="",INDEX(Objednavka!A:I,109,1),INDEX(Objednavka!A:I,109,3)) -> Kolumbie Excelso Maragogype – Finca el Boton - 1 Kg | H124: =INDEX(Objednavka!A:I,109,4) -> 730 | J124: =INDEX(Objednavka!A:I,109,5) -> 839.5 | K124: =INDEX(Objednavka!A:I,109,7) -> 0 | L124: =INDEX(Objednavka!A:I,109,8) -> 0 | N124: =IF(INDEX(Objednavka!A:J,109,10)="","",INDEX(Objednavka!A:J,109,10)) -> 
B125: =IF(INDEX(Objednavka!A:I,110,3)="",INDEX(Objednavka!A:I,110,1),INDEX(Objednavka!A:I,110,3)) -> Kolumbie Excelso Maragogype – Finca el Boton - 5 Kg | H125: =INDEX(Objednavka!A:I,110,4) -> 3140 | J125: =INDEX(Objednavka!A:I,110,5) -> 3611 | K125: =INDEX(Objednavka!A:I,110,7) -> 0 | L125: =INDEX(Objednavka!A:I,110,8) -> 0 | N125: =IF(INDEX(Objednavka!A:J,110,10)="","",INDEX(Objednavka!A:J,110,10)) -> 
B126: =IF(INDEX(Objednavka!A:I,111,3)="",INDEX(Objednavka!A:I,111,1),INDEX(Objednavka!A:I,111,3)) -> Kolumbie Excelso Maragogype – Finca el Boton - 10 Kg | H126: =INDEX(Objednavka!A:I,111,4) -> 5510 | J126: =INDEX(Objednavka!A:I,111,5) -> 6336.5 | K126: =INDEX(Objednavka!A:I,111,7) -> 0 | L126: =INDEX(Objednavka!A:I,111,8) -> 0 | N126: =IF(INDEX(Objednavka!A:J,111,10)="","",INDEX(Objednavka!A:J,111,10)) -> 
B127: =IF(INDEX(Objednavka!A:I,112,3)="",INDEX(Objednavka!A:I,112,1),INDEX(Objednavka!A:I,112,3)) -> Kolumbie Excelso Maragogype – Finca el Boton - 20 Kg | H127: =INDEX(Objednavka!A:I,112,4) -> 9820 | J127: =INDEX(Objednavka!A:I,112,5) -> 11293 | K127: =INDEX(Objednavka!A:I,112,7) -> 0 | L127: =INDEX(Objednavka!A:I,112,8) -> 0 | N127: =IF(INDEX(Objednavka!A:J,112,10)="","",INDEX(Objednavka!A:J,112,10)) -> 
B128: =IF(INDEX(Objednavka!A:I,113,3)="",INDEX(Objednavka!A:I,113,1),INDEX(Objednavka!A:I,113,3)) -> Kolumbie Excelso Maragogype – Finca el Boton - 40 Kg | H128: =INDEX(Objednavka!A:I,113,4) -> 17720 | J128: =INDEX(Objednavka!A:I,113,5) -> 20378 | K128: =INDEX(Objednavka!A:I,113,7) -> 0 | L128: =INDEX(Objednavka!A:I,113,8) -> 0 | N128: =IF(INDEX(Objednavka!A:J,113,10)="","",INDEX(Objednavka!A:J,113,10)) -> 
B129: =IF(INDEX(Objednavka!A:I,114,3)="",INDEX(Objednavka!A:I,114,1),INDEX(Objednavka!A:I,114,3)) -> Kolumbie Excelso Maragogype – Finca el Boton - 60 Kg | H129: =INDEX(Objednavka!A:I,114,4) -> 24180 | J129: =INDEX(Objednavka!A:I,114,5) -> 27807 | K129: =INDEX(Objednavka!A:I,114,7) -> 0 | L129: =INDEX(Objednavka!A:I,114,8) -> 0 | N129: =IF(INDEX(Objednavka!A:J,114,10)="","",INDEX(Objednavka!A:J,114,10)) -> 
B130: =IF(INDEX(Objednavka!A:I,115,3)="",INDEX(Objednavka!A:I,115,1),INDEX(Objednavka!A:I,115,3)) -> Kolumbie Excelso Maragogype – Finca el Boton - 60 Kg - min. odběr 10 pytlů | H130: =INDEX(Objednavka!A:I,115,4) -> 22500 | J130: =INDEX(Objednavka!A:I,115,5) -> 25875 | K130: =INDEX(Objednavka!A:I,115,7) -> 0 | L130: =INDEX(Objednavka!A:I,115,8) -> 0 | N130: =IF(INDEX(Objednavka!A:J,115,10)="","",INDEX(Objednavka!A:J,115,10)) -> 
B131: =IF(INDEX(Objednavka!A:I,116,3)="",INDEX(Objednavka!A:I,116,1),INDEX(Objednavka!A:I,116,3)) -> Kolumbie Supremo - Medellin 17/18 - 1 Kg | H131: =INDEX(Objednavka!A:I,116,4) -> 250 | J131: =INDEX(Objednavka!A:I,116,5) -> 287.5 | K131: =INDEX(Objednavka!A:I,116,7) -> 0 | L131: =INDEX(Objednavka!A:I,116,8) -> 0 | N131: =IF(INDEX(Objednavka!A:J,116,10)="","",INDEX(Objednavka!A:J,116,10)) -> 
B132: =IF(INDEX(Objednavka!A:I,117,3)="",INDEX(Objednavka!A:I,117,1),INDEX(Objednavka!A:I,117,3)) -> Kolumbie Supremo - Medellin 17/18 - 5 Kg | H132: =INDEX(Objednavka!A:I,117,4) -> 1074 | J132: =INDEX(Objednavka!A:I,117,5) -> 1235.1 | K132: =INDEX(Objednavka!A:I,117,7) -> 0 | L132: =INDEX(Objednavka!A:I,117,8) -> 0 | N132: =IF(INDEX(Objednavka!A:J,117,10)="","",INDEX(Objednavka!A:J,117,10)) -> 
B133: =IF(INDEX(Objednavka!A:I,118,3)="",INDEX(Objednavka!A:I,118,1),INDEX(Objednavka!A:I,118,3)) -> Kolumbie Supremo - Medellin 17/18 - 10 Kg | H133: =INDEX(Objednavka!A:I,118,4) -> 1887 | J133: =INDEX(Objednavka!A:I,118,5) -> 2170.05 | K133: =INDEX(Objednavka!A:I,118,7) -> 0 | L133: =INDEX(Objednavka!A:I,118,8) -> 0 | N133: =IF(INDEX(Objednavka!A:J,118,10)="","",INDEX(Objednavka!A:J,118,10)) -> 
B134: =IF(INDEX(Objednavka!A:I,119,3)="",INDEX(Objednavka!A:I,119,1),INDEX(Objednavka!A:I,119,3)) -> Kolumbie Supremo - Medellin 17/18 - 20 Kg | H134: =INDEX(Objednavka!A:I,119,4) -> 3357 | J134: =INDEX(Objednavka!A:I,119,5) -> 3860.55 | K134: =INDEX(Objednavka!A:I,119,7) -> 0 | L134: =INDEX(Objednavka!A:I,119,8) -> 0 | N134: =IF(INDEX(Objednavka!A:J,119,10)="","",INDEX(Objednavka!A:J,119,10)) -> 
B135: =IF(INDEX(Objednavka!A:I,120,3)="",INDEX(Objednavka!A:I,120,1),INDEX(Objednavka!A:I,120,3)) -> Kolumbie Supremo - Medellin 17/18 - 40 Kg | H135: =INDEX(Objednavka!A:I,120,4) -> 6052 | J135: =INDEX(Objednavka!A:I,120,5) -> 6959.8 | K135: =INDEX(Objednavka!A:I,120,7) -> 0 | L135: =INDEX(Objednavka!A:I,120,8) -> 0 | N135: =IF(INDEX(Objednavka!A:J,120,10)="","",INDEX(Objednavka!A:J,120,10)) -> 
B136: =IF(INDEX(Objednavka!A:I,121,3)="",INDEX(Objednavka!A:I,121,1),INDEX(Objednavka!A:I,121,3)) -> Kolumbie Supremo - Medellin 17/18 - 70 Kg | H136: =INDEX(Objednavka!A:I,121,4) -> 9678 | J136: =INDEX(Objednavka!A:I,121,5) -> 11129.7 | K136: =INDEX(Objednavka!A:I,121,7) -> 0 | L136: =INDEX(Objednavka!A:I,121,8) -> 0 | N136: =IF(INDEX(Objednavka!A:J,121,10)="","",INDEX(Objednavka!A:J,121,10)) -> 
B137: =IF(INDEX(Objednavka!A:I,122,3)="",INDEX(Objednavka!A:I,122,1),INDEX(Objednavka!A:I,122,3)) -> Kolumbie Supremo - Medellin 17/18 - 70 Kg - min. odběr 10 pytlů | H137: =INDEX(Objednavka!A:I,122,4) -> 9009 | J137: =INDEX(Objednavka!A:I,122,5) -> 10360.35 | K137: =INDEX(Objednavka!A:I,122,7) -> 0 | L137: =INDEX(Objednavka!A:I,122,8) -> 0 | N137: =IF(INDEX(Objednavka!A:J,122,10)="","",INDEX(Objednavka!A:J,122,10)) -> 
B138: =IF(INDEX(Objednavka!A:I,123,3)="",INDEX(Objednavka!A:I,123,1),INDEX(Objednavka!A:I,123,3)) -> Kostarika - Tarrazu SHB EP Tucan - 1 Kg | H138: =INDEX(Objednavka!A:I,123,4) -> 344 | J138: =INDEX(Objednavka!A:I,123,5) -> 395.6 | K138: =INDEX(Objednavka!A:I,123,7) -> 0 | L138: =INDEX(Objednavka!A:I,123,8) -> 0 | N138: =IF(INDEX(Objednavka!A:J,123,10)="","",INDEX(Objednavka!A:J,123,10)) -> 
B139: =IF(INDEX(Objednavka!A:I,124,3)="",INDEX(Objednavka!A:I,124,1),INDEX(Objednavka!A:I,124,3)) -> Kostarika - Tarrazu SHB EP Tucan - 5 Kg | H139: =INDEX(Objednavka!A:I,124,4) -> 1483 | J139: =INDEX(Objednavka!A:I,124,5) -> 1705.45 | K139: =INDEX(Objednavka!A:I,124,7) -> 0 | L139: =INDEX(Objednavka!A:I,124,8) -> 0 | N139: =IF(INDEX(Objednavka!A:J,124,10)="","",INDEX(Objednavka!A:J,124,10)) -> 
B140: =IF(INDEX(Objednavka!A:I,125,3)="",INDEX(Objednavka!A:I,125,1),INDEX(Objednavka!A:I,125,3)) -> Kostarika - Tarrazu SHB EP Tucan - 10 Kg | H140: =INDEX(Objednavka!A:I,125,4) -> 2600 | J140: =INDEX(Objednavka!A:I,125,5) -> 2990 | K140: =INDEX(Objednavka!A:I,125,7) -> 0 | L140: =INDEX(Objednavka!A:I,125,8) -> 0 | N140: =IF(INDEX(Objednavka!A:J,125,10)="","",INDEX(Objednavka!A:J,125,10)) -> 
B141: =IF(INDEX(Objednavka!A:I,126,3)="",INDEX(Objednavka!A:I,126,1),INDEX(Objednavka!A:I,126,3)) -> Kostarika - Tarrazu SHB EP Tucan - 20 Kg | H141: =INDEX(Objednavka!A:I,126,4) -> 4643 | J141: =INDEX(Objednavka!A:I,126,5) -> 5339.45 | K141: =INDEX(Objednavka!A:I,126,7) -> 0 | L141: =INDEX(Objednavka!A:I,126,8) -> 0 | N141: =IF(INDEX(Objednavka!A:J,126,10)="","",INDEX(Objednavka!A:J,126,10)) -> 
B142: =IF(INDEX(Objednavka!A:I,127,3)="",INDEX(Objednavka!A:I,127,1),INDEX(Objednavka!A:I,127,3)) -> Kostarika - Tarrazu SHB EP Tucan - 40 Kg | H142: =INDEX(Objednavka!A:I,127,4) -> 8348 | J142: =INDEX(Objednavka!A:I,127,5) -> 9600.2 | K142: =INDEX(Objednavka!A:I,127,7) -> 0 | L142: =INDEX(Objednavka!A:I,127,8) -> 0 | N142: =IF(INDEX(Objednavka!A:J,127,10)="","",INDEX(Objednavka!A:J,127,10)) -> 
B143: =IF(INDEX(Objednavka!A:I,128,3)="",INDEX(Objednavka!A:I,128,1),INDEX(Objednavka!A:I,128,3)) -> Kostarika - Tarrazu SHB EP Tucan - 69 Kg | H143: =INDEX(Objednavka!A:I,128,4) -> 14400 | J143: =INDEX(Objednavka!A:I,128,5) -> 16560 | K143: =INDEX(Objednavka!A:I,128,7) -> 0 | L143: =INDEX(Objednavka!A:I,128,8) -> 0 | N143: =IF(INDEX(Objednavka!A:J,128,10)="","",INDEX(Objednavka!A:J,128,10)) -> 
B144: =IF(INDEX(Objednavka!A:I,129,3)="",INDEX(Objednavka!A:I,129,1),INDEX(Objednavka!A:I,129,3)) -> Kostarika - Tarrazu SHB EP Tucan - 69 Kg - min. odběr 10 pytlů | H144: =INDEX(Objednavka!A:I,129,4) -> 12240 | J144: =INDEX(Objednavka!A:I,129,5) -> 14076 | K144: =INDEX(Objednavka!A:I,129,7) -> 0 | L144: =INDEX(Objednavka!A:I,129,8) -> 0 | N144: =IF(INDEX(Objednavka!A:J,129,10)="","",INDEX(Objednavka!A:J,129,10)) -> 
B145: =IF(INDEX(Objednavka!A:I,130,3)="",INDEX(Objednavka!A:I,130,1),INDEX(Objednavka!A:I,130,3)) -> Kostarika - Palmichal El Cedral Black Honey - 1 Kg | H145: =INDEX(Objednavka!A:I,130,4) -> 555 | J145: =INDEX(Objednavka!A:I,130,5) -> 638.25 | K145: =INDEX(Objednavka!A:I,130,7) -> 0 | L145: =INDEX(Objednavka!A:I,130,8) -> 0 | N145: =IF(INDEX(Objednavka!A:J,130,10)="","",INDEX(Objednavka!A:J,130,10)) -> 
B146: =IF(INDEX(Objednavka!A:I,131,3)="",INDEX(Objednavka!A:I,131,1),INDEX(Objednavka!A:I,131,3)) -> Kostarika - Palmichal El Cedral Black Honey - 5 Kg | H146: =INDEX(Objednavka!A:I,131,4) -> 2390 | J146: =INDEX(Objednavka!A:I,131,5) -> 2748.5 | K146: =INDEX(Objednavka!A:I,131,7) -> 0 | L146: =INDEX(Objednavka!A:I,131,8) -> 0 | N146: =IF(INDEX(Objednavka!A:J,131,10)="","",INDEX(Objednavka!A:J,131,10)) -> 
B147: =IF(INDEX(Objednavka!A:I,132,3)="",INDEX(Objednavka!A:I,132,1),INDEX(Objednavka!A:I,132,3)) -> Kostarika - Palmichal El Cedral Black Honey - 10 Kg | H147: =INDEX(Objednavka!A:I,132,4) -> 4190 | J147: =INDEX(Objednavka!A:I,132,5) -> 4818.5 | K147: =INDEX(Objednavka!A:I,132,7) -> 0 | L147: =INDEX(Objednavka!A:I,132,8) -> 0 | N147: =IF(INDEX(Objednavka!A:J,132,10)="","",INDEX(Objednavka!A:J,132,10)) -> 
B148: =IF(INDEX(Objednavka!A:I,133,3)="",INDEX(Objednavka!A:I,133,1),INDEX(Objednavka!A:I,133,3)) -> Kostarika - Palmichal El Cedral Black Honey - 20 Kg | H148: =INDEX(Objednavka!A:I,133,4) -> 7460 | J148: =INDEX(Objednavka!A:I,133,5) -> 8579 | K148: =INDEX(Objednavka!A:I,133,7) -> 0 | L148: =INDEX(Objednavka!A:I,133,8) -> 0 | N148: =IF(INDEX(Objednavka!A:J,133,10)="","",INDEX(Objednavka!A:J,133,10)) -> 
B149: =IF(INDEX(Objednavka!A:I,134,3)="",INDEX(Objednavka!A:I,134,1),INDEX(Objednavka!A:I,134,3)) -> Kostarika - Palmichal El Cedral Black Honey - 40 Kg | H149: =INDEX(Objednavka!A:I,134,4) -> 13480 | J149: =INDEX(Objednavka!A:I,134,5) -> 15502 | K149: =INDEX(Objednavka!A:I,134,7) -> 0 | L149: =INDEX(Objednavka!A:I,134,8) -> 0 | N149: =IF(INDEX(Objednavka!A:J,134,10)="","",INDEX(Objednavka!A:J,134,10)) -> 
B150: =IF(INDEX(Objednavka!A:I,135,3)="",INDEX(Objednavka!A:I,135,1),INDEX(Objednavka!A:I,135,3)) -> Kostarika - Palmichal El Cedral Black Honey - 60 Kg | H150: =INDEX(Objednavka!A:I,135,4) -> 18420 | J150: =INDEX(Objednavka!A:I,135,5) -> 21183 | K150: =INDEX(Objednavka!A:I,135,7) -> 0 | L150: =INDEX(Objednavka!A:I,135,8) -> 0 | N150: =IF(INDEX(Objednavka!A:J,135,10)="","",INDEX(Objednavka!A:J,135,10)) -> 
B151: =IF(INDEX(Objednavka!A:I,136,3)="",INDEX(Objednavka!A:I,136,1),INDEX(Objednavka!A:I,136,3)) -> Kostarika - Palmichal El Cedral Black Honey - 60 Kg - min. odběr 10 pytlů | H151: =INDEX(Objednavka!A:I,136,4) -> 17100 | J151: =INDEX(Objednavka!A:I,136,5) -> 19665 | K151: =INDEX(Objednavka!A:I,136,7) -> 0 | L151: =INDEX(Objednavka!A:I,136,8) -> 0 | N151: =IF(INDEX(Objednavka!A:J,136,10)="","",INDEX(Objednavka!A:J,136,10)) -> 
B152: =IF(INDEX(Objednavka!A:I,137,3)="",INDEX(Objednavka!A:I,137,1),INDEX(Objednavka!A:I,137,3)) -> Kuba - Serrano Lavado - 1 Kg | H152: =INDEX(Objednavka!A:I,137,4) -> 369 | J152: =INDEX(Objednavka!A:I,137,5) -> 424.35 | K152: =INDEX(Objednavka!A:I,137,7) -> 0 | L152: =INDEX(Objednavka!A:I,137,8) -> 0 | N152: =IF(INDEX(Objednavka!A:J,137,10)="","",INDEX(Objednavka!A:J,137,10)) -> 
B153: =IF(INDEX(Objednavka!A:I,138,3)="",INDEX(Objednavka!A:I,138,1),INDEX(Objednavka!A:I,138,3)) -> Kuba - Serrano Lavado - 5 Kg | H153: =INDEX(Objednavka!A:I,138,4) -> 1587 | J153: =INDEX(Objednavka!A:I,138,5) -> 1825.05 | K153: =INDEX(Objednavka!A:I,138,7) -> 0 | L153: =INDEX(Objednavka!A:I,138,8) -> 0 | N153: =IF(INDEX(Objednavka!A:J,138,10)="","",INDEX(Objednavka!A:J,138,10)) -> 
B154: =IF(INDEX(Objednavka!A:I,139,3)="",INDEX(Objednavka!A:I,139,1),INDEX(Objednavka!A:I,139,3)) -> Kuba - Serrano Lavado - 10 Kg | H154: =INDEX(Objednavka!A:I,139,4) -> 2783 | J154: =INDEX(Objednavka!A:I,139,5) -> 3200.45 | K154: =INDEX(Objednavka!A:I,139,7) -> 0 | L154: =INDEX(Objednavka!A:I,139,8) -> 0 | N154: =IF(INDEX(Objednavka!A:J,139,10)="","",INDEX(Objednavka!A:J,139,10)) -> 
B155: =IF(INDEX(Objednavka!A:I,140,3)="",INDEX(Objednavka!A:I,140,1),INDEX(Objednavka!A:I,140,3)) -> Kuba - Serrano Lavado - 20 Kg | H155: =INDEX(Objednavka!A:I,140,4) -> 4957 | J155: =INDEX(Objednavka!A:I,140,5) -> 5700.55 | K155: =INDEX(Objednavka!A:I,140,7) -> 0 | L155: =INDEX(Objednavka!A:I,140,8) -> 0 | N155: =IF(INDEX(Objednavka!A:J,140,10)="","",INDEX(Objednavka!A:J,140,10)) -> 
B156: =IF(INDEX(Objednavka!A:I,141,3)="",INDEX(Objednavka!A:I,141,1),INDEX(Objednavka!A:I,141,3)) -> Kuba - Serrano Lavado - 40 Kg | H156: =INDEX(Objednavka!A:I,141,4) -> 8939 | J156: =INDEX(Objednavka!A:I,141,5) -> 10279.85 | K156: =INDEX(Objednavka!A:I,141,7) -> 0 | L156: =INDEX(Objednavka!A:I,141,8) -> 0 | N156: =IF(INDEX(Objednavka!A:J,141,10)="","",INDEX(Objednavka!A:J,141,10)) -> 
B157: =IF(INDEX(Objednavka!A:I,142,3)="",INDEX(Objednavka!A:I,142,1),INDEX(Objednavka!A:I,142,3)) -> Kuba - Serrano Lavado - 60 Kg | H157: =INDEX(Objednavka!A:I,142,4) -> 12209 | J157: =INDEX(Objednavka!A:I,142,5) -> 14040.35 | K157: =INDEX(Objednavka!A:I,142,7) -> 0 | L157: =INDEX(Objednavka!A:I,142,8) -> 0 | N157: =IF(INDEX(Objednavka!A:J,142,10)="","",INDEX(Objednavka!A:J,142,10)) -> 
B158: =IF(INDEX(Objednavka!A:I,143,3)="",INDEX(Objednavka!A:I,143,1),INDEX(Objednavka!A:I,143,3)) -> Kuba - Serrano Lavado - 60 Kg - min. odběr 10 pytlů | H158: =INDEX(Objednavka!A:I,143,4) -> 11374 | J158: =INDEX(Objednavka!A:I,143,5) -> 13080.1 | K158: =INDEX(Objednavka!A:I,143,7) -> 0 | L158: =INDEX(Objednavka!A:I,143,8) -> 0 | N158: =IF(INDEX(Objednavka!A:J,143,10)="","",INDEX(Objednavka!A:J,143,10)) -> 
B159: =IF(INDEX(Objednavka!A:I,144,3)="",INDEX(Objednavka!A:I,144,1),INDEX(Objednavka!A:I,144,3)) -> Malawi - Rain Forest Alliance - 1 Kg | H159: =INDEX(Objednavka!A:I,144,4) -> 328 | J159: =INDEX(Objednavka!A:I,144,5) -> 377.2 | K159: =INDEX(Objednavka!A:I,144,7) -> 0 | L159: =INDEX(Objednavka!A:I,144,8) -> 0 | N159: =IF(INDEX(Objednavka!A:J,144,10)="","",INDEX(Objednavka!A:J,144,10)) -> 
B160: =IF(INDEX(Objednavka!A:I,145,3)="",INDEX(Objednavka!A:I,145,1),INDEX(Objednavka!A:I,145,3)) -> Malawi - Rain Forest Alliance - 5 Kg | H160: =INDEX(Objednavka!A:I,145,4) -> 1413 | J160: =INDEX(Objednavka!A:I,145,5) -> 1624.95 | K160: =INDEX(Objednavka!A:I,145,7) -> 0 | L160: =INDEX(Objednavka!A:I,145,8) -> 0 | N160: =IF(INDEX(Objednavka!A:J,145,10)="","",INDEX(Objednavka!A:J,145,10)) -> 
B161: =IF(INDEX(Objednavka!A:I,146,3)="",INDEX(Objednavka!A:I,146,1),INDEX(Objednavka!A:I,146,3)) -> Malawi - Rain Forest Alliance - 10 Kg | H161: =INDEX(Objednavka!A:I,146,4) -> 2478 | J161: =INDEX(Objednavka!A:I,146,5) -> 2849.7 | K161: =INDEX(Objednavka!A:I,146,7) -> 0 | L161: =INDEX(Objednavka!A:I,146,8) -> 0 | N161: =IF(INDEX(Objednavka!A:J,146,10)="","",INDEX(Objednavka!A:J,146,10)) -> 
B162: =IF(INDEX(Objednavka!A:I,147,3)="",INDEX(Objednavka!A:I,147,1),INDEX(Objednavka!A:I,147,3)) -> Malawi - Rain Forest Alliance - 20 Kg | H162: =INDEX(Objednavka!A:I,147,4) -> 4416 | J162: =INDEX(Objednavka!A:I,147,5) -> 5078.4 | K162: =INDEX(Objednavka!A:I,147,7) -> 0 | L162: =INDEX(Objednavka!A:I,147,8) -> 0 | N162: =IF(INDEX(Objednavka!A:J,147,10)="","",INDEX(Objednavka!A:J,147,10)) -> 
B163: =IF(INDEX(Objednavka!A:I,148,3)="",INDEX(Objednavka!A:I,148,1),INDEX(Objednavka!A:I,148,3)) -> Malawi - Rain Forest Alliance - 40 Kg | H163: =INDEX(Objednavka!A:I,148,4) -> 7965 | J163: =INDEX(Objednavka!A:I,148,5) -> 9159.75 | K163: =INDEX(Objednavka!A:I,148,7) -> 0 | L163: =INDEX(Objednavka!A:I,148,8) -> 0 | N163: =IF(INDEX(Objednavka!A:J,148,10)="","",INDEX(Objednavka!A:J,148,10)) -> 
B164: =IF(INDEX(Objednavka!A:I,149,3)="",INDEX(Objednavka!A:I,149,1),INDEX(Objednavka!A:I,149,3)) -> Malawi - Rain Forest Alliance - 60 Kg | H164: =INDEX(Objednavka!A:I,149,4) -> 10852 | J164: =INDEX(Objednavka!A:I,149,5) -> 12479.8 | K164: =INDEX(Objednavka!A:I,149,7) -> 0 | L164: =INDEX(Objednavka!A:I,149,8) -> 0 | N164: =IF(INDEX(Objednavka!A:J,149,10)="","",INDEX(Objednavka!A:J,149,10)) -> 
B165: =IF(INDEX(Objednavka!A:I,150,3)="",INDEX(Objednavka!A:I,150,1),INDEX(Objednavka!A:I,150,3)) -> Malawi - Rain Forest Alliance - 60 Kg - min. odběr 10 pytlů | H165: =INDEX(Objednavka!A:I,150,4) -> 10122 | J165: =INDEX(Objednavka!A:I,150,5) -> 11640.3 | K165: =INDEX(Objednavka!A:I,150,7) -> 0 | L165: =INDEX(Objednavka!A:I,150,8) -> 0 | N165: =IF(INDEX(Objednavka!A:J,150,10)="","",INDEX(Objednavka!A:J,150,10)) -> 
B166: =IF(INDEX(Objednavka!A:I,151,3)="",INDEX(Objednavka!A:I,151,1),INDEX(Objednavka!A:I,151,3)) -> Mexico - SHG EP El Conejo - 1 Kg | H166: =INDEX(Objednavka!A:I,151,4) -> 322 | J166: =INDEX(Objednavka!A:I,151,5) -> 370.3 | K166: =INDEX(Objednavka!A:I,151,7) -> 0 | L166: =INDEX(Objednavka!A:I,151,8) -> 0 | N166: =IF(INDEX(Objednavka!A:J,151,10)="","",INDEX(Objednavka!A:J,151,10)) -> 
B167: =IF(INDEX(Objednavka!A:I,152,3)="",INDEX(Objednavka!A:I,152,1),INDEX(Objednavka!A:I,152,3)) -> Mexico - SHG EP El Conejo - 5 Kg | H167: =INDEX(Objednavka!A:I,152,4) -> 1383 | J167: =INDEX(Objednavka!A:I,152,5) -> 1590.45 | K167: =INDEX(Objednavka!A:I,152,7) -> 0 | L167: =INDEX(Objednavka!A:I,152,8) -> 0 | N167: =IF(INDEX(Objednavka!A:J,152,10)="","",INDEX(Objednavka!A:J,152,10)) -> 
B168: =IF(INDEX(Objednavka!A:I,153,3)="",INDEX(Objednavka!A:I,153,1),INDEX(Objednavka!A:I,153,3)) -> Mexico - SHG EP El Conejo - 10 Kg | H168: =INDEX(Objednavka!A:I,153,4) -> 2426 | J168: =INDEX(Objednavka!A:I,153,5) -> 2789.9 | K168: =INDEX(Objednavka!A:I,153,7) -> 0 | L168: =INDEX(Objednavka!A:I,153,8) -> 0 | N168: =IF(INDEX(Objednavka!A:J,153,10)="","",INDEX(Objednavka!A:J,153,10)) -> 
B169: =IF(INDEX(Objednavka!A:I,154,3)="",INDEX(Objednavka!A:I,154,1),INDEX(Objednavka!A:I,154,3)) -> Mexico - SHG EP El Conejo - 20 Kg | H169: =INDEX(Objednavka!A:I,154,4) -> 4330 | J169: =INDEX(Objednavka!A:I,154,5) -> 4979.5 | K169: =INDEX(Objednavka!A:I,154,7) -> 0 | L169: =INDEX(Objednavka!A:I,154,8) -> 0 | N169: =IF(INDEX(Objednavka!A:J,154,10)="","",INDEX(Objednavka!A:J,154,10)) -> 
B170: =IF(INDEX(Objednavka!A:I,155,3)="",INDEX(Objednavka!A:I,155,1),INDEX(Objednavka!A:I,155,3)) -> Mexico - SHG EP El Conejo - 40 Kg | H170: =INDEX(Objednavka!A:I,155,4) -> 7791 | J170: =INDEX(Objednavka!A:I,155,5) -> 8959.65 | K170: =INDEX(Objednavka!A:I,155,7) -> 0 | L170: =INDEX(Objednavka!A:I,155,8) -> 0 | N170: =IF(INDEX(Objednavka!A:J,155,10)="","",INDEX(Objednavka!A:J,155,10)) -> 
B171: =IF(INDEX(Objednavka!A:I,156,3)="",INDEX(Objednavka!A:I,156,1),INDEX(Objednavka!A:I,156,3)) -> Mexico - SHG EP El Conejo - 69 Kg | H171: =INDEX(Objednavka!A:I,156,4) -> 12240 | J171: =INDEX(Objednavka!A:I,156,5) -> 14076 | K171: =INDEX(Objednavka!A:I,156,7) -> 0 | L171: =INDEX(Objednavka!A:I,156,8) -> 0 | N171: =IF(INDEX(Objednavka!A:J,156,10)="","",INDEX(Objednavka!A:J,156,10)) -> 
B172: =IF(INDEX(Objednavka!A:I,157,3)="",INDEX(Objednavka!A:I,157,1),INDEX(Objednavka!A:I,157,3)) -> Mexico - SHG EP El Conejo - 69 Kg - min. odběr 10 pytlů | H172: =INDEX(Objednavka!A:I,157,4) -> 11400 | J172: =INDEX(Objednavka!A:I,157,5) -> 13110 | K172: =INDEX(Objednavka!A:I,157,7) -> 0 | L172: =INDEX(Objednavka!A:I,157,8) -> 0 | N172: =IF(INDEX(Objednavka!A:J,157,10)="","",INDEX(Objednavka!A:J,157,10)) -> 
B173: =IF(INDEX(Objednavka!A:I,158,3)="",INDEX(Objednavka!A:I,158,1),INDEX(Objednavka!A:I,158,3)) -> Mexico bez kofeinu - El Tucan Mountain Water Process - 1 Kg | H173: =INDEX(Objednavka!A:I,158,4) -> 353 | J173: =INDEX(Objednavka!A:I,158,5) -> 405.95 | K173: =INDEX(Objednavka!A:I,158,7) -> 0 | L173: =INDEX(Objednavka!A:I,158,8) -> 0 | N173: =IF(INDEX(Objednavka!A:J,158,10)="","",INDEX(Objednavka!A:J,158,10)) -> 
B174: =IF(INDEX(Objednavka!A:I,159,3)="",INDEX(Objednavka!A:I,159,1),INDEX(Objednavka!A:I,159,3)) -> Mexico bez kofeinu - El Tucan Mountain Water Process - 5 Kg | H174: =INDEX(Objednavka!A:I,159,4) -> 1522 | J174: =INDEX(Objednavka!A:I,159,5) -> 1750.3 | K174: =INDEX(Objednavka!A:I,159,7) -> 0 | L174: =INDEX(Objednavka!A:I,159,8) -> 0 | N174: =IF(INDEX(Objednavka!A:J,159,10)="","",INDEX(Objednavka!A:J,159,10)) -> 
B175: =IF(INDEX(Objednavka!A:I,160,3)="",INDEX(Objednavka!A:I,160,1),INDEX(Objednavka!A:I,160,3)) -> Mexico bez kofeinu - El Tucan Mountain Water Process - 10 Kg | H175: =INDEX(Objednavka!A:I,160,4) -> 2670 | J175: =INDEX(Objednavka!A:I,160,5) -> 3070.5 | K175: =INDEX(Objednavka!A:I,160,7) -> 0 | L175: =INDEX(Objednavka!A:I,160,8) -> 0 | N175: =IF(INDEX(Objednavka!A:J,160,10)="","",INDEX(Objednavka!A:J,160,10)) -> 
B176: =IF(INDEX(Objednavka!A:I,161,3)="",INDEX(Objednavka!A:I,161,1),INDEX(Objednavka!A:I,161,3)) -> Mexico bez kofeinu - El Tucan Mountain Water Process - 20 Kg | H176: =INDEX(Objednavka!A:I,161,4) -> 4748 | J176: =INDEX(Objednavka!A:I,161,5) -> 5460.2 | K176: =INDEX(Objednavka!A:I,161,7) -> 0 | L176: =INDEX(Objednavka!A:I,161,8) -> 0 | N176: =IF(INDEX(Objednavka!A:J,161,10)="","",INDEX(Objednavka!A:J,161,10)) -> 
B177: =IF(INDEX(Objednavka!A:I,162,3)="",INDEX(Objednavka!A:I,162,1),INDEX(Objednavka!A:I,162,3)) -> Mexico bez kofeinu - El Tucan Mountain Water Process - 40 Kg | H177: =INDEX(Objednavka!A:I,162,4) -> 8591 | J177: =INDEX(Objednavka!A:I,162,5) -> 9879.65 | K177: =INDEX(Objednavka!A:I,162,7) -> 0 | L177: =INDEX(Objednavka!A:I,162,8) -> 0 | N177: =IF(INDEX(Objednavka!A:J,162,10)="","",INDEX(Objednavka!A:J,162,10)) -> 
B178: =IF(INDEX(Objednavka!A:I,163,3)="",INDEX(Objednavka!A:I,163,1),INDEX(Objednavka!A:I,163,3)) -> Mexico bez kofeinu - El Tucan Mountain Water Process - 69 Kg | H178: =INDEX(Objednavka!A:I,163,4) -> 13500 | J178: =INDEX(Objednavka!A:I,163,5) -> 15525 | K178: =INDEX(Objednavka!A:I,163,7) -> 0 | L178: =INDEX(Objednavka!A:I,163,8) -> 0 | N178: =IF(INDEX(Objednavka!A:J,163,10)="","",INDEX(Objednavka!A:J,163,10)) -> 
B179: =IF(INDEX(Objednavka!A:I,164,3)="",INDEX(Objednavka!A:I,164,1),INDEX(Objednavka!A:I,164,3)) -> Mexico bez kofeinu - El Tucan Mountain Water Process - 69 Kg - min. odběr 10 pytlů | H179: =INDEX(Objednavka!A:I,164,4) -> 12540 | J179: =INDEX(Objednavka!A:I,164,5) -> 14421 | K179: =INDEX(Objednavka!A:I,164,7) -> 0 | L179: =INDEX(Objednavka!A:I,164,8) -> 0 | N179: =IF(INDEX(Objednavka!A:J,164,10)="","",INDEX(Objednavka!A:J,164,10)) -> 
B180: =IF(INDEX(Objednavka!A:I,165,3)="",INDEX(Objednavka!A:I,165,1),INDEX(Objednavka!A:I,165,3)) -> Panama Boquete SHP EP San Sebastian Estate - 1 Kg | H180: =INDEX(Objednavka!A:I,165,4) -> 448 | J180: =INDEX(Objednavka!A:I,165,5) -> 515.2 | K180: =INDEX(Objednavka!A:I,165,7) -> 0 | L180: =INDEX(Objednavka!A:I,165,8) -> 0 | N180: =IF(INDEX(Objednavka!A:J,165,10)="","",INDEX(Objednavka!A:J,165,10)) -> 
B181: =IF(INDEX(Objednavka!A:I,166,3)="",INDEX(Objednavka!A:I,166,1),INDEX(Objednavka!A:I,166,3)) -> Panama Boquete SHP EP San Sebastian Estate - 5 Kg | H181: =INDEX(Objednavka!A:I,166,4) -> 1926 | J181: =INDEX(Objednavka!A:I,166,5) -> 2214.9 | K181: =INDEX(Objednavka!A:I,166,7) -> 0 | L181: =INDEX(Objednavka!A:I,166,8) -> 0 | N181: =IF(INDEX(Objednavka!A:J,166,10)="","",INDEX(Objednavka!A:J,166,10)) -> 
B182: =IF(INDEX(Objednavka!A:I,167,3)="",INDEX(Objednavka!A:I,167,1),INDEX(Objednavka!A:I,167,3)) -> Panama Boquete SHP EP San Sebastian Estate - 10 Kg | H182: =INDEX(Objednavka!A:I,167,4) -> 3383 | J182: =INDEX(Objednavka!A:I,167,5) -> 3890.45 | K182: =INDEX(Objednavka!A:I,167,7) -> 0 | L182: =INDEX(Objednavka!A:I,167,8) -> 0 | N182: =IF(INDEX(Objednavka!A:J,167,10)="","",INDEX(Objednavka!A:J,167,10)) -> 
B183: =IF(INDEX(Objednavka!A:I,168,3)="",INDEX(Objednavka!A:I,168,1),INDEX(Objednavka!A:I,168,3)) -> Panama Boquete SHP EP San Sebastian Estate - 20 Kg | H183: =INDEX(Objednavka!A:I,168,4) -> 6017 | J183: =INDEX(Objednavka!A:I,168,5) -> 6919.55 | K183: =INDEX(Objednavka!A:I,168,7) -> 0 | L183: =INDEX(Objednavka!A:I,168,8) -> 0 | N183: =IF(INDEX(Objednavka!A:J,168,10)="","",INDEX(Objednavka!A:J,168,10)) -> 
B184: =IF(INDEX(Objednavka!A:I,169,3)="",INDEX(Objednavka!A:I,169,1),INDEX(Objednavka!A:I,169,3)) -> Panama Boquete SHP EP San Sebastian Estate - 40 Kg | H184: =INDEX(Objednavka!A:I,169,4) -> 10852 | J184: =INDEX(Objednavka!A:I,169,5) -> 12479.8 | K184: =INDEX(Objednavka!A:I,169,7) -> 0 | L184: =INDEX(Objednavka!A:I,169,8) -> 0 | N184: =IF(INDEX(Objednavka!A:J,169,10)="","",INDEX(Objednavka!A:J,169,10)) -> 
B185: =IF(INDEX(Objednavka!A:I,170,3)="",INDEX(Objednavka!A:I,170,1),INDEX(Objednavka!A:I,170,3)) -> Panama Boquete SHP EP San Sebastian Estate - 60 Kg | H185: =INDEX(Objednavka!A:I,170,4) -> 14818 | J185: =INDEX(Objednavka!A:I,170,5) -> 17040.7 | K185: =INDEX(Objednavka!A:I,170,7) -> 0 | L185: =INDEX(Objednavka!A:I,170,8) -> 0 | N185: =IF(INDEX(Objednavka!A:J,170,10)="","",INDEX(Objednavka!A:J,170,10)) -> 
B186: =IF(INDEX(Objednavka!A:I,171,3)="",INDEX(Objednavka!A:I,171,1),INDEX(Objednavka!A:I,171,3)) -> Panama Boquete SHP EP San Sebastian Estate - 60 Kg - min. odběr 10 pytlů | H186: =INDEX(Objednavka!A:I,171,4) -> 13826 | J186: =INDEX(Objednavka!A:I,171,5) -> 15899.9 | K186: =INDEX(Objednavka!A:I,171,7) -> 0 | L186: =INDEX(Objednavka!A:I,171,8) -> 0 | N186: =IF(INDEX(Objednavka!A:J,171,10)="","",INDEX(Objednavka!A:J,171,10)) -> 
B187: =IF(INDEX(Objednavka!A:I,172,3)="",INDEX(Objednavka!A:I,172,1),INDEX(Objednavka!A:I,172,3)) -> Papua - Nová Guinea - Goroka Plantation A/X - 1 Kg | H187: =INDEX(Objednavka!A:I,172,4) -> 314 | J187: =INDEX(Objednavka!A:I,172,5) -> 361.1 | K187: =INDEX(Objednavka!A:I,172,7) -> 0 | L187: =INDEX(Objednavka!A:I,172,8) -> 0 | N187: =IF(INDEX(Objednavka!A:J,172,10)="","",INDEX(Objednavka!A:J,172,10)) -> 
B188: =IF(INDEX(Objednavka!A:I,173,3)="",INDEX(Objednavka!A:I,173,1),INDEX(Objednavka!A:I,173,3)) -> Papua - Nová Guinea - Goroka Plantation A/X - 5 Kg | H188: =INDEX(Objednavka!A:I,173,4) -> 1352 | J188: =INDEX(Objednavka!A:I,173,5) -> 1554.8 | K188: =INDEX(Objednavka!A:I,173,7) -> 0 | L188: =INDEX(Objednavka!A:I,173,8) -> 0 | N188: =IF(INDEX(Objednavka!A:J,173,10)="","",INDEX(Objednavka!A:J,173,10)) -> 
B189: =IF(INDEX(Objednavka!A:I,174,3)="",INDEX(Objednavka!A:I,174,1),INDEX(Objednavka!A:I,174,3)) -> Papua - Nová Guinea - Goroka Plantation A/X - 10 Kg | H189: =INDEX(Objednavka!A:I,174,4) -> 2374 | J189: =INDEX(Objednavka!A:I,174,5) -> 2730.1 | K189: =INDEX(Objednavka!A:I,174,7) -> 0 | L189: =INDEX(Objednavka!A:I,174,8) -> 0 | N189: =IF(INDEX(Objednavka!A:J,174,10)="","",INDEX(Objednavka!A:J,174,10)) -> 
B190: =IF(INDEX(Objednavka!A:I,175,3)="",INDEX(Objednavka!A:I,175,1),INDEX(Objednavka!A:I,175,3)) -> Papua - Nová Guinea - Goroka Plantation A/X - 20 Kg | H190: =INDEX(Objednavka!A:I,175,4) -> 4226 | J190: =INDEX(Objednavka!A:I,175,5) -> 4859.9 | K190: =INDEX(Objednavka!A:I,175,7) -> 0 | L190: =INDEX(Objednavka!A:I,175,8) -> 0 | N190: =IF(INDEX(Objednavka!A:J,175,10)="","",INDEX(Objednavka!A:J,175,10)) -> 
B191: =IF(INDEX(Objednavka!A:I,176,3)="",INDEX(Objednavka!A:I,176,1),INDEX(Objednavka!A:I,176,3)) -> Papua - Nová Guinea - Goroka Plantation A/X - 40 Kg | H191: =INDEX(Objednavka!A:I,176,4) -> 7617 | J191: =INDEX(Objednavka!A:I,176,5) -> 8759.55 | K191: =INDEX(Objednavka!A:I,176,7) -> 0 | L191: =INDEX(Objednavka!A:I,176,8) -> 0 | N191: =IF(INDEX(Objednavka!A:J,176,10)="","",INDEX(Objednavka!A:J,176,10)) -> 
B192: =IF(INDEX(Objednavka!A:I,177,3)="",INDEX(Objednavka!A:I,177,1),INDEX(Objednavka!A:I,177,3)) -> Papua - Nová Guinea - Goroka Plantation A/X - 60 Kg | H192: =INDEX(Objednavka!A:I,177,4) -> 10435 | J192: =INDEX(Objednavka!A:I,177,5) -> 12000.25 | K192: =INDEX(Objednavka!A:I,177,7) -> 0 | L192: =INDEX(Objednavka!A:I,177,8) -> 0 | N192: =IF(INDEX(Objednavka!A:J,177,10)="","",INDEX(Objednavka!A:J,177,10)) -> 
B193: =IF(INDEX(Objednavka!A:I,178,3)="",INDEX(Objednavka!A:I,178,1),INDEX(Objednavka!A:I,178,3)) -> Papua - Nová Guinea - Goroka Plantation A/X - 60 Kg - min. odběr 10 pytlů | H193: =INDEX(Objednavka!A:I,178,4) -> 9704 | J193: =INDEX(Objednavka!A:I,178,5) -> 11159.6 | K193: =INDEX(Objednavka!A:I,178,7) -> 0 | L193: =INDEX(Objednavka!A:I,178,8) -> 0 | N193: =IF(INDEX(Objednavka!A:J,178,10)="","",INDEX(Objednavka!A:J,178,10)) -> 
B194: =IF(INDEX(Objednavka!A:I,179,3)="",INDEX(Objednavka!A:I,179,1),INDEX(Objednavka!A:I,179,3)) -> Peru - Grade 1 - 1 Kg | H194: =INDEX(Objednavka!A:I,179,4) -> 226 | J194: =INDEX(Objednavka!A:I,179,5) -> 259.9 | K194: =INDEX(Objednavka!A:I,179,7) -> 0 | L194: =INDEX(Objednavka!A:I,179,8) -> 0 | N194: =IF(INDEX(Objednavka!A:J,179,10)="","",INDEX(Objednavka!A:J,179,10)) -> 
B195: =IF(INDEX(Objednavka!A:I,180,3)="",INDEX(Objednavka!A:I,180,1),INDEX(Objednavka!A:I,180,3)) -> Peru - Grade 1 - 5 Kg | H195: =INDEX(Objednavka!A:I,180,4) -> 974 | J195: =INDEX(Objednavka!A:I,180,5) -> 1120.1 | K195: =INDEX(Objednavka!A:I,180,7) -> 0 | L195: =INDEX(Objednavka!A:I,180,8) -> 0 | N195: =IF(INDEX(Objednavka!A:J,180,10)="","",INDEX(Objednavka!A:J,180,10)) -> 
B196: =IF(INDEX(Objednavka!A:I,181,3)="",INDEX(Objednavka!A:I,181,1),INDEX(Objednavka!A:I,181,3)) -> Peru - Grade 1 - 10 Kg | H196: =INDEX(Objednavka!A:I,181,4) -> 1713 | J196: =INDEX(Objednavka!A:I,181,5) -> 1969.95 | K196: =INDEX(Objednavka!A:I,181,7) -> 0 | L196: =INDEX(Objednavka!A:I,181,8) -> 0 | N196: =IF(INDEX(Objednavka!A:J,181,10)="","",INDEX(Objednavka!A:J,181,10)) -> 
B197: =IF(INDEX(Objednavka!A:I,182,3)="",INDEX(Objednavka!A:I,182,1),INDEX(Objednavka!A:I,182,3)) -> Peru - Grade 1 - 20 Kg | H197: =INDEX(Objednavka!A:I,182,4) -> 3043 | J197: =INDEX(Objednavka!A:I,182,5) -> 3499.45 | K197: =INDEX(Objednavka!A:I,182,7) -> 0 | L197: =INDEX(Objednavka!A:I,182,8) -> 0 | N197: =IF(INDEX(Objednavka!A:J,182,10)="","",INDEX(Objednavka!A:J,182,10)) -> 
B198: =IF(INDEX(Objednavka!A:I,183,3)="",INDEX(Objednavka!A:I,183,1),INDEX(Objednavka!A:I,183,3)) -> Peru - Grade 1 - 40 Kg | H198: =INDEX(Objednavka!A:I,183,4) -> 5496 | J198: =INDEX(Objednavka!A:I,183,5) -> 6320.4 | K198: =INDEX(Objednavka!A:I,183,7) -> 0 | L198: =INDEX(Objednavka!A:I,183,8) -> 0 | N198: =IF(INDEX(Objednavka!A:J,183,10)="","",INDEX(Objednavka!A:J,183,10)) -> 
B199: =IF(INDEX(Objednavka!A:I,184,3)="",INDEX(Objednavka!A:I,184,1),INDEX(Objednavka!A:I,184,3)) -> Peru - Grade 1 - 69 Kg | H199: =INDEX(Objednavka!A:I,184,4) -> 8640 | J199: =INDEX(Objednavka!A:I,184,5) -> 9936 | K199: =INDEX(Objednavka!A:I,184,7) -> 0 | L199: =INDEX(Objednavka!A:I,184,8) -> 0 | N199: =IF(INDEX(Objednavka!A:J,184,10)="","",INDEX(Objednavka!A:J,184,10)) -> 
B200: =IF(INDEX(Objednavka!A:I,185,3)="",INDEX(Objednavka!A:I,185,1),INDEX(Objednavka!A:I,185,3)) -> Peru - Grade 1 - 69 Kg - min. odběr 10 pytlů | H200: =INDEX(Objednavka!A:I,185,4) -> 8040 | J200: =INDEX(Objednavka!A:I,185,5) -> 9246 | K200: =INDEX(Objednavka!A:I,185,7) -> 0 | L200: =INDEX(Objednavka!A:I,185,8) -> 0 | N200: =IF(INDEX(Objednavka!A:J,185,10)="","",INDEX(Objednavka!A:J,185,10)) -> 
B201: =IF(INDEX(Objednavka!A:I,186,3)="",INDEX(Objednavka!A:I,186,1),INDEX(Objednavka!A:I,186,3)) -> Rwanda AA - 1 Kg | H201: =INDEX(Objednavka!A:I,186,4) -> 285 | J201: =INDEX(Objednavka!A:I,186,5) -> 327.75 | K201: =INDEX(Objednavka!A:I,186,7) -> 0 | L201: =INDEX(Objednavka!A:I,186,8) -> 0 | N201: =IF(INDEX(Objednavka!A:J,186,10)="","",INDEX(Objednavka!A:J,186,10)) -> 
B202: =IF(INDEX(Objednavka!A:I,187,3)="",INDEX(Objednavka!A:I,187,1),INDEX(Objednavka!A:I,187,3)) -> Rwanda AA - 5 Kg | H202: =INDEX(Objednavka!A:I,187,4) -> 1226 | J202: =INDEX(Objednavka!A:I,187,5) -> 1409.9 | K202: =INDEX(Objednavka!A:I,187,7) -> 0 | L202: =INDEX(Objednavka!A:I,187,8) -> 0 | N202: =IF(INDEX(Objednavka!A:J,187,10)="","",INDEX(Objednavka!A:J,187,10)) -> 
B203: =IF(INDEX(Objednavka!A:I,188,3)="",INDEX(Objednavka!A:I,188,1),INDEX(Objednavka!A:I,188,3)) -> Rwanda AA - 10 Kg | H203: =INDEX(Objednavka!A:I,188,4) -> 2157 | J203: =INDEX(Objednavka!A:I,188,5) -> 2480.55 | K203: =INDEX(Objednavka!A:I,188,7) -> 0 | L203: =INDEX(Objednavka!A:I,188,8) -> 0 | N203: =IF(INDEX(Objednavka!A:J,188,10)="","",INDEX(Objednavka!A:J,188,10)) -> 
B204: =IF(INDEX(Objednavka!A:I,189,3)="",INDEX(Objednavka!A:I,189,1),INDEX(Objednavka!A:I,189,3)) -> Rwanda AA - 20 Kg | H204: =INDEX(Objednavka!A:I,189,4) -> 3843 | J204: =INDEX(Objednavka!A:I,189,5) -> 4419.45 | K204: =INDEX(Objednavka!A:I,189,7) -> 0 | L204: =INDEX(Objednavka!A:I,189,8) -> 0 | N204: =IF(INDEX(Objednavka!A:J,189,10)="","",INDEX(Objednavka!A:J,189,10)) -> 
B205: =IF(INDEX(Objednavka!A:I,190,3)="",INDEX(Objednavka!A:I,190,1),INDEX(Objednavka!A:I,190,3)) -> Rwanda AA - 40 Kg | H205: =INDEX(Objednavka!A:I,190,4) -> 6922 | J205: =INDEX(Objednavka!A:I,190,5) -> 7960.3 | K205: =INDEX(Objednavka!A:I,190,7) -> 0 | L205: =INDEX(Objednavka!A:I,190,8) -> 0 | N205: =IF(INDEX(Objednavka!A:J,190,10)="","",INDEX(Objednavka!A:J,190,10)) -> 
... 801 more rows
